{"text_format":"1","workbook":"xlsx","n_sheets":11,"sheets":["Stavba","300 3195300 KL","300 3195300 Rek","300 3195300 Pol","400 3195400 KL","400 3195400 Rek","400 3195400 Pol","Rekapitulace VO","Elektromontáže VO","ONS","List1"],"not_rendered":{"charts":0,"images":0,"macros":0,"external_links":1,"defined_names":47,"comments":0,"pivot_tables":0},"unopened":[],"bounds":{"document_bytes":16777216,"sheet_cells":100000,"rows_first":2000,"rows_last":500,"rows_between":2000,"halvings":0,"cell_chars":16384,"cell_head_chars":4096},"cells_cut":0,"cells_raw":0,"read":"whole","date_system":"1900"}

{"sheet":"Stavba","index":0,"n_rows":42,"n_cols":10,"rows_kept":42,"cut":false,"hidden":false,"merged":[[18,8,18,9],[19,8,19,9],[20,8,20,9],[21,8,21,9],[22,8,22,9]]}
[]
[null,null,"Položkový rozpočet cenové nabídky stavby",null,null,null,null,"Datum: "]
[null,null,null," "]
[]
[null,null,"Stavba :","3195","Vysoké nad Jizerou - Nový vodovodní řad"]
[]
[null,null,"Objednatel : ","Město Vysoké nad Jizerou",null,null,null,"IČO :"]
[null,null,null,"nám. Dr. Karla Kramáře č.p.227",null,null,null,"DIČ :"]
[null,null,"51211","Vysoké nad Jizerou"]
[]
[null,null,"Zhotovitel : ",".",null,null,null,"IČO :"]
[null,null,null,null,null,null,null,"DIČ :"]
[]
[null,null,"Za zhotovitele :",null,null,null,null,"Za objednatele :"]
[]
[null,null,"_______________",null,null,null,null,"_______________"]
[]
[null,null,null,null,null,null,null,null,null,"Rozpočtové náklady"]
[null,"Základ pro DPH",null,15,"%",null,null,null,{"$f":"ROUND(G33,0)","v":0}]
[null,"DPH ",null,{"$f":"SazbaDPH1","v":15},"%",null,null,null,{"$f":"ROUND(I19*D20/100,0)","v":0}]
[null,"Základ pro DPH",null,21,"%",null,null,null,{"$f":"ROUND(H33,0)","v":0}]
[null,"DPH ",null,{"$f":"SazbaDPH2","v":21},"%",null,null,null,{"$f":"ROUND(I21*D21/100,0)","v":0}]
[null,"Cena celkem za stavbu",null,null,null,null,null,null,{"$f":"SUM(I19:I22)","v":0}]
[]
[]
[]
[null,"Rekapitulace stavebních objektů a provozních souborů"]
[]
[null,"Číslo a název objektu / provozního souboru",null,null,null,"Cena celkem",{"$f":"CONCATENATE(\"Základ DPH \",SazbaDPH1,\" %\")","v":"Základ DPH 15 %"},{"$f":"CONCATENATE(\"Základ DPH \",SazbaDPH2,\" %\")","v":"Základ DPH 21 %"},"DPH celkem","%"]
[null,"300","Vodovodní řad mezi ISŠ a domovem důchodců",null,null,{"$f":"G30+H30+I30","v":0},0,{"$f":"SUM(H40)","v":0},{"$f":"(G30*SazbaDPH1)/100+(H30*SazbaDPH2)/100","v":0},{"$f":"IF(CelkemObjekty=0,\"\",F30/CelkemObjekty*100)","v":""}]
[null,"400","Veřejné osvětlení",null,null,{"$f":"G31+H31+I31","v":0},0,{"$f":"SUM(H41)","v":0},0,""]
[null,"ONS","Ostatní náklady stavby",null,null,0,0,{"$f":"SUM(ONS!G25)","v":0},0,""]
[null,"Celkem za stavbu",null,null,null,{"$f":"SUM(F30:F32)","v":0},{"$f":"SUM(G30:G32)","v":0},{"$f":"SUM(H30:H32)","v":0},{"$f":"SUM(I30:I32)","v":0},{"$f":"IF(CelkemObjekty=0,\"\",F33/CelkemObjekty*100)","v":""}]
[]
[]
[]
[null,"Rekapitulace stavebních rozpočtů"]
[]
[null,"Číslo objektu","Číslo a název rozpočtu",null,null,"Cena celkem",{"$f":"CONCATENATE(\"Základ DPH \",SazbaDPH1,\" %\")","v":"Základ DPH 15 %"},{"$f":"CONCATENATE(\"Základ DPH \",SazbaDPH2,\" %\")","v":"Základ DPH 21 %"},"DPH celkem","%"]
[null,"300","3195/300 Vodovodní řad mezi ISŠ a domovem důchodců",null,null,{"$f":"G40+H40+I40","v":0},0,{"$f":"SUM('300 3195300 KL'!C23)","v":0},{"$f":"(G40*SazbaDPH1)/100+(H40*SazbaDPH2)/100","v":0},{"$f":"IF(CelkemObjekty=0,\"\",F40/CelkemObjekty*100)","v":""}]
[null,"400","3195/400 Veřejné osvětlení",null,null,{"$f":"G41+H41+I41","v":0},0,{"$f":"SUM('400 3195400 KL'!C23)","v":0},0,""]
[null,"Celkem za stavbu",null,null,null,{"$f":"SUM(F40:F41)","v":0},{"$f":"SUM(G40:G41)","v":0},{"$f":"SUM(H40:H41)","v":0},{"$f":"SUM(I40:I41)","v":0},{"$f":"IF(CelkemObjekty=0,\"\",F42/CelkemObjekty*100)","v":""}]

{"sheet":"300 3195300 KL","index":1,"n_rows":45,"n_cols":8,"rows_kept":45,"cut":false,"hidden":false,"merged":[[22,0,22,1],[7,2,7,4],[8,2,8,4],[9,2,9,4],[10,2,10,4],[11,2,11,4],[50,1,50,6],[29,5,29,6],[30,5,30,6],[31,5,31,6],[32,5,32,6],[33,5,33,6],[36,1,44,6],[45,1,45,6],[46,1,46,6],[47,1,47,6],[48,1,48,6],[49,1,49,6]]}
["POLOŽKOVÝ ROZPOČET"]
["Rozpočet",null,"3195/300","Vodovodní řad mezi ISŠ a domovem důchodců",null,"JKSO ","827.13"]
[]
["Objekt",null,null,null,null,"SKP "]
["300",null,"Vodovodní řad mezi ISŠ a domovem důchodců",null,null,"Měrná jednotka","m"]
["Stavba",null,null,null,null,"Počet jednotek",0]
["3195",null,"Vysoké nad Jizerou - Nový vodovodní řad",null,null,"Náklady na m.j.",{"$f":"IF(G6=0,,ROUND((F30+F32)/G6,1))","v":0}]
["Projektant",null,"PVK Projekt s.r.o.",null,null,"Typ rozpočtu"]
["Zpracovatel projektu"]
["Objednatel",null,"Město Vysoké nad Jizerou"]
["Dodavatel",null,".",null,null,"Zakázkové číslo "]
["Rozpočtoval",null,null,null,null,"Počet listů"]
["ROZPOČTOVÉ NÁKLADY"]
["Základní rozpočtové náklady"]
[null,"HSV celkem",{"$f":"'300 3195300 Rek'!E13","v":0}]
["Z","PSV celkem",{"$f":"'300 3195300 Rek'!F13","v":0}]
["R","M práce celkem",{"$f":"'300 3195300 Rek'!H13","v":0}]
["N","M dodávky celkem",{"$f":"'300 3195300 Rek'!G13","v":0}]
["ZRN celkem",null,{"$f":"SUM(C15:C18)","v":0}]
[]
["HZS",null,{"$f":"'300 3195300 Rek'!I13","v":0}]
["ZRN+HZS",null,{"$f":"C19+C21","v":0}]
["ZRN+ost.náklady+HZS",null,{"$f":"C22+G23","v":0}]
["Vypracoval",null,null,"Za zhotovitele",null,"Za objednatele"]
["Jméno :",null,null,"Jméno :",null,"Jméno :"]
["Datum :",null,null,"Datum :",null,"Datum :"]
[]
["Podpis :",null,null,"Podpis:",null,"Podpis:"]
[]
["Základ pro DPH",null,21,"%  ",null,{"$f":"C23-F32","v":0}]
["DPH",null,{"$f":"C30","v":21},"% ",null,{"$f":"ROUND(PRODUCT(F30,C31/100),0)","v":0}]
["Základ pro DPH",null,0,"% ",null,0]
["DPH",null,{"$f":"C32","v":0},"% ",null,{"$f":"ROUND(PRODUCT(F32,C33/100),0)","v":0}]
["CENA ZA OBJEKT CELKEM",null,null,null,null,{"$f":"ROUND(SUM(F30:F33),0)","v":0}]
[]
["Poznámka :",null,null,null,null,null,null," "]
[null,null,null,null,null,null,null," "]
[null,null,null,null,null,null,null," "]
[null,null,null,null,null,null,null," "]
[null,null,null,null,null,null,null," "]
[null,null,null,null,null,null,null," "]
[null,null,null,null,null,null,null," "]
[null,null,null,null,null,null,null," "]
[null,null,null,null,null,null,null," "]
[null,null,null,null,null,null,null," "]

{"sheet":"300 3195300 Rek","index":2,"n_rows":13,"n_cols":9,"rows_kept":13,"cut":false,"hidden":false,"merged":[[0,0,0,1],[1,0,1,1],[1,6,1,8]]}
["Stavba :",null,"3195 Vysoké nad Jizerou - Nový vodovodní řad",null,null,null,"Rozpočet :","3195/300"]
["Objekt :",null,"300 Vodovodní řad mezi ISŠ a domovem důchodců",null,null,null,"Vodovodní řad mezi ISŠ a domovem důchodců"]
[]
["REKAPITULACE  STAVEBNÍCH  DÍLŮ"]
[]
[null,"Stavební díl",null,null,"HSV","PSV","Dodávka","Montáž","HZS"]
[{"$f":"'300 3195300 Pol'!B7","v":"1"},{"$f":"'300 3195300 Pol'!C7","v":"Zemní práce"},null,null,{"$f":"'300 3195300 Pol'!BA57","v":0},{"$f":"'300 3195300 Pol'!BB57","v":0},{"$f":"'300 3195300 Pol'!BC57","v":0},{"$f":"'300 3195300 Pol'!BD57","v":0},{"$f":"'300 3195300 Pol'!BE57","v":0}]
[{"$f":"'300 3195300 Pol'!B58","v":"11"},{"$f":"'300 3195300 Pol'!C58","v":"Přípravné a přidružené práce"},null,null,{"$f":"'300 3195300 Pol'!BA73","v":0},{"$f":"'300 3195300 Pol'!BB73","v":0},{"$f":"'300 3195300 Pol'!BC73","v":0},{"$f":"'300 3195300 Pol'!BD73","v":0},{"$f":"'300 3195300 Pol'!BE73","v":0}]
[{"$f":"'300 3195300 Pol'!B74","v":"45"},{"$f":"'300 3195300 Pol'!C74","v":"Podkladní a vedlejší konstrukce"},null,null,{"$f":"'300 3195300 Pol'!BA79","v":0},{"$f":"'300 3195300 Pol'!BB79","v":0},{"$f":"'300 3195300 Pol'!BC79","v":0},{"$f":"'300 3195300 Pol'!BD79","v":0},{"$f":"'300 3195300 Pol'!BE79","v":0}]
[{"$f":"'300 3195300 Pol'!B80","v":"5"},{"$f":"'300 3195300 Pol'!C80","v":"Komunikace"},null,null,{"$f":"'300 3195300 Pol'!BA88","v":0},{"$f":"'300 3195300 Pol'!BB88","v":0},{"$f":"'300 3195300 Pol'!BC88","v":0},{"$f":"'300 3195300 Pol'!BD88","v":0},{"$f":"'300 3195300 Pol'!BE88","v":0}]
[{"$f":"'300 3195300 Pol'!B89","v":"8"},{"$f":"'300 3195300 Pol'!C89","v":"Trubní vedení"},null,null,{"$f":"SUM('300 3195300 Pol'!G244)","v":0},{"$f":"'300 3195300 Pol'!BB215","v":0},{"$f":"'300 3195300 Pol'!BC215","v":0},{"$f":"'300 3195300 Pol'!BD215","v":0},{"$f":"'300 3195300 Pol'!BE215","v":0}]
["99","Přesun hmot",null,null,{"$f":"SUM('300 3195300 Pol'!G247)","v":0},{"$f":"'300 3195300 Pol'!BB217","v":0},{"$f":"'300 3195300 Pol'!BC217","v":0},{"$f":"'300 3195300 Pol'!BD217","v":0},{"$f":"'300 3195300 Pol'!BE217","v":0}]
[null,"CELKEM  OBJEKT",null,null,{"$f":"SUM(E7:E12)","v":0},{"$f":"SUM(F7:F12)","v":0},{"$f":"SUM(G7:G12)","v":0},{"$f":"SUM(H7:H12)","v":0},{"$f":"SUM(I7:I12)","v":0}]

{"sheet":"300 3195300 Pol","index":3,"n_rows":247,"n_cols":104,"rows_kept":247,"cut":false,"hidden":false,"merged":[[236,2,236,3],[238,2,238,3],[240,2,240,3],[242,2,242,3],[225,2,225,6],[226,2,226,6],[227,2,227,6],[228,2,228,6],[229,2,229,6],[230,2,230,6],[231,2,231,3],[233,2,233,3],[234,2,234,3],[215,2,215,3],[217,2,217,6],[218,2,218,6],[219,2,219,6],[220,2,220,6],[221,2,221,6],[222,2,222,6],[223,2,223,3],[184,2,184,6],[190,2,190,3],[196,2,196,3],[197,2,197,3],[198,2,198,3],[200,2,200,3],[203,2,203,3],[208,2,208,3],[210,2,210,3],[192,2,192,6],[193,2,193,6],[194,2,194,3],[185,2,185,6],[186,2,186,3],[188,2,188,6],[189,2,189,6],[14,2,14,3],[16,2,16,3],[17,2,17,3],[19,2,19,6],[20,2,20,6],[21,2,21,3],[0,0,0,6],[2,0,2,1],[3,0,3,1],[3,4,3,6],[10,2,10,3],[11,2,11,3],[12,2,12,3],[13,2,13,3],[29,2,29,3],[30,2,30,3],[31,2,31,3],[32,2,32,3],[33,2,33,3],[35,2,35,6],[22,2,22,3],[23,2,23,3],[24,2,24,3],[25,2,25,3],[27,2,27,6],[28,2,28,6],[43,2,43,3],[44,2,44,3],[46,2,46,3],[47,2,47,3],[49,2,49,6],[36,2,36,6],[37,2,37,3],[38,2,38,3],[39,2,39,3],[40,2,40,3],[41,2,41,3],[65,2,65,3],[67,2,67,3],[68,2,68,3],[75,2,75,3],[76,2,76,3],[51,2,51,3],[52,2,52,3],[54,2,54,3],[55,2,55,3],[59,2,59,3],[60,2,60,3],[62,2,62,3],[64,2,64,3],[90,2,90,6],[91,2,91,6],[92,2,92,6],[93,2,93,6],[94,2,94,6],[96,2,96,3],[97,2,97,3],[98,2,98,3],[81,2,81,3],[82,2,82,3],[83,2,83,3],[85,2,85,3],[86,2,86,3],[108,2,108,3],[110,2,110,6],[111,2,111,3],[113,2,113,6],[114,2,114,3],[116,2,116,6],[99,2,99,3],[100,2,100,3],[102,2,102,3],[104,2,104,6],[105,2,105,3],[107,2,107,6],[125,2,125,3],[126,2,126,3],[129,2,129,6],[130,2,130,3],[117,2,117,3],[120,2,120,3],[121,2,121,3],[124,2,124,6],[119,2,119,3],[122,2,122,3],[128,2,128,6],[131,2,131,3],[132,2,132,3],[145,2,145,3],[147,2,147,3],[138,2,138,3],[139,2,139,3],[140,2,140,3],[134,2,134,6],[135,2,135,3],[137,2,137,6],[141,2,141,3],[143,2,143,6],[144,2,144,3],[158,2,158,3],[161,2,161,3],[163,2,163,3],[149,2,149,3],[150,2,150,3],[152,2,152,3],[153,2,153,3],[155,2,155,3],[151,2,151,3],[154,2,154,3],[157,2,157,3],[160,2,160,3],[162,2,162,3],[207,2,207,3],[213,2,213,3],[202,2,202,3],[204,2,204,3],[205,2,205,3],[212,2,212,3],[164,2,164,3],[165,2,165,3],[166,2,166,3],[175,2,175,3],[177,2,177,3],[178,2,178,3],[180,2,180,3],[182,2,182,3],[167,2,167,3],[171,2,171,3],[168,2,168,3],[169,2,169,3],[172,2,172,3],[174,2,174,3]]}
["Položkový rozpočet "]
[]
["Stavba :",null,{"$f":"CONCATENATE(cislostavby,\" \",nazevstavby)","v":"3195 Vysoké nad Jizerou - Nový vodovodní řad"},null,"Rozpočet:",{"$f":"[1]Rekapitulace!H1","v":"3195/300"}]
["Objekt :",null,{"$f":"CONCATENATE(cisloobjektu,\" \",nazevobjektu)","v":"300 Vodovodní řad mezi ISŠ a domovem důchodců"},null,{"$f":"[1]Rekapitulace!G2","v":"Vodovodní řad mezi ISŠ a domovem důchodců"}]
[]
["P.č.","Číslo položky","Název položky","MJ","množství","cena / MJ","celkem (Kč)"]
["Díl:","1","Zemní práce",null,null,null,null,null,null,null,null,null,null,null,1]
[1,"119001401RRX","Dočasné zajištění potrubí do DN 200 mm ","m",6.4,null,{"$f":"E8*F8","v":0},null,null,null,null,null,null,null,2,null,null,null,null,null,null,null,null,null,null,null,1,1,1,null,null,null,null,null,null,null,null,null,null,null,null,null,null,null,null,null,null,null,null,null,null,1,{"$f":"IF(AZ8=1,G8,0)","v":0},{"$f":"IF(AZ8=2,G8,0)","v":0},{"$f":"IF(AZ8=3,G8,0)","v":0},{"$f":"IF(AZ8=4,G8,0)","v":0},{"$f":"IF(AZ8=5,G8,0)","v":0},null,null,null,null,null,null,null,null,null,null,null,null,null,null,null,null,null,null,null,null,null,1,1,null,null,null,null,null,null,null,null,null,null,null,null,null,null,null,null,null,null,null,null,null,null,null,8.6899999999999998E-3]
[2,"119001421R00","Dočasné zajištění kabelů - do počtu 3 kabelů ","m",4.8,null,{"$f":"E9*F9","v":0},null,null,null,null,null,null,null,2,null,null,null,null,null,null,null,null,null,null,null,1,1,1,null,null,null,null,null,null,null,null,null,null,null,null,null,null,null,null,null,null,null,null,null,null,1,{"$f":"IF(AZ9=1,G9,0)","v":0},{"$f":"IF(AZ9=2,G9,0)","v":0},{"$f":"IF(AZ9=3,G9,0)","v":0},{"$f":"IF(AZ9=4,G9,0)","v":0},{"$f":"IF(AZ9=5,G9,0)","v":0},null,null,null,null,null,null,null,null,null,null,null,null,null,null,null,null,null,null,null,null,null,1,1,null,null,null,null,null,null,null,null,null,null,null,null,null,null,null,null,null,null,null,null,null,null,null,2.478E-2]
[3,"120001101R00","Příplatek za ztížení vykopávky v blízkosti vedení ","m3",122.5145,null,{"$f":"E10*F10","v":0},null,null,null,null,null,null,null,2,null,null,null,null,null,null,null,null,null,null,null,1,1,1,null,null,null,null,null,null,null,null,null,null,null,null,null,null,null,null,null,null,null,null,null,null,1,{"$f":"IF(AZ10=1,G10,0)","v":0},{"$f":"IF(AZ10=2,G10,0)","v":0},{"$f":"IF(AZ10=3,G10,0)","v":0},{"$f":"IF(AZ10=4,G10,0)","v":0},{"$f":"IF(AZ10=5,G10,0)","v":0},null,null,null,null,null,null,null,null,null,null,null,null,null,null,null,null,null,null,null,null,null,1,1,null,null,null,null,null,null,null,null,null,null,null,null,null,null,null,null,null,null,null,null,null,null,null,0]
[null,null,"Začátek provozního součtu",null,0,null,null,null,null,null,null,null,"Začátek provozního součtu"]
[null,null,"Řad d 63x5,8 mm:60,74*0,90*(1,75-0,20)",null,84.732299999999995,null,null,null,null,null,null,null,"Řad d 63x5,8 mm:60,74*0,90*(1,75-0,20)"]
[null,null,"Řad d 90x8,2 mm:158,82*0,90*(1,75-0,20)",null,221.5539,null,null,null,null,null,null,null,"Řad d 90x8,2 mm:158,82*0,90*(1,75-0,20)"]
[null,null,"Konec provozního součtu",null,306.28620000000001,null,null,null,null,null,null,null,"Konec provozního součtu"]
[null,null,"V hornině tř. 3 až 5 - 40%:306,2862*0,4",null,122.5145,null,null,null,null,null,null,null,"V hornině tř. 3 až 5 - 40%:306,2862*0,4"]
[4,"121100002RAA","Sejmutí ornice v tl. 20 cm a zpětné rozprostření, případné dosetí","m3",20.36,null,{"$f":"E16*F16","v":0},null,null,null,null,null,null,null,2,null,null,null,null,null,null,null,null,null,null,null,1,1,1,null,null,null,null,null,null,null,null,null,null,null,null,null,null,null,null,null,null,null,null,null,null,1,{"$f":"IF(AZ16=1,G16,0)","v":0},{"$f":"IF(AZ16=2,G16,0)","v":0},{"$f":"IF(AZ16=3,G16,0)","v":0},{"$f":"IF(AZ16=4,G16,0)","v":0},{"$f":"IF(AZ16=5,G16,0)","v":0},null,null,null,null,null,null,null,null,null,null,null,null,null,null,null,null,null,null,null,null,null,1,1,null,null,null,null,null,null,null,null,null,null,null,null,null,null,null,null,null,null,null,null,null,null,null,0]
[null,null,"Řad d 63x5,8 mm:",null,0,null,null,null,null,null,null,null,"Řad d 63x5,8 mm:(60,74-7,00)*2,00*0,20"]
[null,null,"Řad d 90x8,2 mm:(101,82)*1,00*0,20",null,20.36,null,null,null,null,null,null,null,"Řad d 90x8,2 mm:(158,82+24,00)*1,00*0,20"]
[5,"132201212RRX","Hloubení rýh š.do 200 cm hor.3 do 1000m3,STROJNĚ ","m3",122.5145,null,{"$f":"E19*F19","v":0},null,null,null,null,null,null,null,2,null,null,null,null,null,null,null,null,null,null,null,1,1,1,null,null,null,null,null,null,null,null,null,null,null,null,null,null,null,null,null,null,null,null,null,null,1,{"$f":"IF(AZ19=1,G19,0)","v":0},{"$f":"IF(AZ19=2,G19,0)","v":0},{"$f":"IF(AZ19=3,G19,0)","v":0},{"$f":"IF(AZ19=4,G19,0)","v":0},{"$f":"IF(AZ19=5,G19,0)","v":0},null,null,null,null,null,null,null,null,null,null,null,null,null,null,null,null,null,null,null,null,null,1,1,null,null,null,null,null,null,null,null,null,null,null,null,null,null,null,null,null,null,null,null,null,null,null,0]
[null,null,"Položka obsahuje hloubení rýh traktorbagrem, naložení výkopku na dopravní prostředek pro svislé, nebo vodorovné přemístění, popř. přemístění výkopku do 3 m (po povrchu území), případné zajištění rypadel polštáři, udržování pracoviště a ochranu výkopiště proti stékání srážkové vody z okolního terénu i s jejím odvodněním, nebo odvedením, přesekání a odstranění kořenů ve výkopišti, odstranění napadávek, urovnání dna výkopu.",null,null,null,null,null,null,null,null,"Položka obsahuje hloubení rýh traktorbagrem, naložení výkopku na dopravní prostředek pro svislé, nebo vodorovné přemístění, popř. přemístění výkopku do 3 m (po povrchu území), případné zajištění rypadel polštáři, udržování pracoviště a ochranu výkopiště proti stékání srážkové vody z okolního terénu i s jejím odvodněním, nebo odvedením, přesekání a odstranění kořenů ve výkopišti, odstranění napadávek, urovnání dna výkopu.",null,null,3]
[null,null,"Součástí položky je i pažení rýhy v souladu s ČSN a předpisy BOZP.",null,null,null,null,null,null,null,null,"Součástí položky je i pažení rýhy v souladu s ČSN a předpisy BOZP.",null,null,3]
[null,null,"Začátek provozního součtu",null,0,null,null,null,null,null,null,null,"Začátek provozního součtu"]
[null,null,"Řad d 63x5,8 mm:60,74*0,90*(1,75-0,20)",null,84.732299999999995,null,null,null,null,null,null,null,"Řad d 63x5,8 mm:60,74*0,90*(1,75-0,20)"]
[null,null,"Řad d 90x8,2 mm:158,82*0,90*(1,75-0,20)",null,221.5539,null,null,null,null,null,null,null,"Řad d 90x8,2 mm:158,82*0,90*(1,75-0,20)"]
[null,null,"Konec provozního součtu",null,306.28620000000001,null,null,null,null,null,null,null,"Konec provozního součtu"]
[null,null,"V hornině tř. 3 - 40%:306,2862*0,4",null,122.5145,null,null,null,null,null,null,null,"V hornině tř. 3 - 40%:306,2862*0,4"]
[6,"132301212RRX","Hloubení rýh š.do 200 cm hor.4 do 1000 m3, STROJNĚ ","m3",153.1431,null,{"$f":"E27*F27","v":0},null,null,null,null,null,null,null,2,null,null,null,null,null,null,null,null,null,null,null,1,1,1,null,null,null,null,null,null,null,null,null,null,null,null,null,null,null,null,null,null,null,null,null,null,1,{"$f":"IF(AZ27=1,G27,0)","v":0},{"$f":"IF(AZ27=2,G27,0)","v":0},{"$f":"IF(AZ27=3,G27,0)","v":0},{"$f":"IF(AZ27=4,G27,0)","v":0},{"$f":"IF(AZ27=5,G27,0)","v":0},null,null,null,null,null,null,null,null,null,null,null,null,null,null,null,null,null,null,null,null,null,1,1,null,null,null,null,null,null,null,null,null,null,null,null,null,null,null,null,null,null,null,null,null,null,null,0]
[null,null,"Položka obsahuje hloubení rýh traktorbagrem, naložení výkopku na dopravní prostředek pro svislé, nebo vodorovné přemístění, popř. přemístění výkopku do 3 m (po povrchu území), případné zajištění rypadel polštáři, udržování pracoviště a ochranu výkopiště proti stékání srážkové vody z okolního terénu i s jejím odvodněním, nebo odvedením, přesekání a odstranění kořenů ve výkopišti, odstranění napadávek, urovnání dna výkopu.",null,null,null,null,null,null,null,null,"Položka obsahuje hloubení rýh traktorbagrem, naložení výkopku na dopravní prostředek pro svislé, nebo vodorovné přemístění, popř. přemístění výkopku do 3 m (po povrchu území), případné zajištění rypadel polštáři, udržování pracoviště a ochranu výkopiště proti stékání srážkové vody z okolního terénu i s jejím odvodněním, nebo odvedením, přesekání a odstranění kořenů ve výkopišti, odstranění napadávek, urovnání dna výkopu.",null,null,3]
[null,null,"Součástí položky je i pažení rýhy v souladu s ČSN a předpisy BOZP.",null,null,null,null,null,null,null,null,"Součástí položky je i pažení rýhy v souladu s ČSN a předpisy BOZP.",null,null,3]
[null,null,"Začátek provozního součtu",null,0,null,null,null,null,null,null,null,"Začátek provozního součtu"]
[null,null,"Řad d 63x5,8 mm:60,74*0,90*(1,75-0,20)",null,84.732299999999995,null,null,null,null,null,null,null,"Řad d 63x5,8 mm:60,74*0,90*(1,75-0,20)"]
[null,null,"Řad d 90x8,2 mm:158,82*0,90*(1,75-0,20)",null,221.5539,null,null,null,null,null,null,null,"Řad d 90x8,2 mm:158,82*0,90*(1,75-0,20)"]
[null,null,"Konec provozního součtu",null,306.28620000000001,null,null,null,null,null,null,null,"Konec provozního součtu"]
[null,null,"V hornině tř. 4 - 50%:306,2862*0,5",null,153.1431,null,null,null,null,null,null,null,"V hornině tř. 4 - 50%:306,2862*0,5"]
[7,"132401201RRX","Hloubení rýh šířky do 200 cm v hor.5, STROJNĚ ","m3",30.628599999999999,null,{"$f":"E35*F35","v":0},null,null,null,null,null,null,null,2,null,null,null,null,null,null,null,null,null,null,null,1,1,1,null,null,null,null,null,null,null,null,null,null,null,null,null,null,null,null,null,null,null,null,null,null,1,{"$f":"IF(AZ35=1,G35,0)","v":0},{"$f":"IF(AZ35=2,G35,0)","v":0},{"$f":"IF(AZ35=3,G35,0)","v":0},{"$f":"IF(AZ35=4,G35,0)","v":0},{"$f":"IF(AZ35=5,G35,0)","v":0},null,null,null,null,null,null,null,null,null,null,null,null,null,null,null,null,null,null,null,null,null,1,1,null,null,null,null,null,null,null,null,null,null,null,null,null,null,null,null,null,null,null,null,null,null,null,1.0410000000000001E-2]
[null,null,"Položka obsahuje hloubení rýh traktorbagrem, naložení výkopku na dopravní prostředek pro svislé, nebo vodorovné přemístění, popř. přemístění výkopku do 3 m (po povrchu území), případné zajištění rypadel polštáři, udržování pracoviště a ochranu výkopiště proti stékání srážkové vody z okolního terénu i s jejím odvodněním, nebo odvedením, přesekání a odstranění kořenů ve výkopišti, odstranění napadávek, urovnání dna výkopu.",null,null,null,null,null,null,null,null,"Položka obsahuje hloubení rýh traktorbagrem, naložení výkopku na dopravní prostředek pro svislé, nebo vodorovné přemístění, popř. přemístění výkopku do 3 m (po povrchu území), případné zajištění rypadel polštáři, udržování pracoviště a ochranu výkopiště proti stékání srážkové vody z okolního terénu i s jejím odvodněním, nebo odvedením, přesekání a odstranění kořenů ve výkopišti, odstranění napadávek, urovnání dna výkopu.",null,null,3]
[null,null,"Součástí položky je i pažení rýhy v souladu s ČSN a předpisy BOZP.",null,null,null,null,null,null,null,null,"Součástí položky je i pažení rýhy v souladu s ČSN a předpisy BOZP.",null,null,3]
[null,null,"Začátek provozního součtu",null,0,null,null,null,null,null,null,null,"Začátek provozního součtu"]
[null,null,"Řad d 63x5,8 mm:60,74*0,90*(1,75-0,20)",null,84.732299999999995,null,null,null,null,null,null,null,"Řad d 63x5,8 mm:60,74*0,90*(1,75-0,20)"]
[null,null,"Řad d 90x8,2 mm:158,82*0,90*(1,75-0,20)",null,221.5539,null,null,null,null,null,null,null,"Řad d 90x8,2 mm:158,82*0,90*(1,75-0,20)"]
[null,null,"Konec provozního součtu",null,306.28620000000001,null,null,null,null,null,null,null,"Konec provozního součtu"]
[null,null,"V hornině tř. 5 - 10%:306,2862*0,1",null,30.628599999999999,null,null,null,null,null,null,null,"V hornině tř. 5 - 10%:306,2862*0,1"]
[8,"162601102R00","Vodorovné přemístění výkopku na skládku zhotovitele","m3",92.57,null,{"$f":"E43*F43","v":0},null,null,null,null,null,null,null,2,null,null,null,null,null,null,null,null,null,null,null,1,1,1,null,null,null,null,null,null,null,null,null,null,null,null,null,null,null,null,null,null,null,null,null,null,1,{"$f":"IF(AZ43=1,G43,0)","v":0},{"$f":"IF(AZ43=2,G43,0)","v":0},{"$f":"IF(AZ43=3,G43,0)","v":0},{"$f":"IF(AZ43=4,G43,0)","v":0},{"$f":"IF(AZ43=5,G43,0)","v":0},null,null,null,null,null,null,null,null,null,null,null,null,null,null,null,null,null,null,null,null,null,1,1,null,null,null,null,null,null,null,null,null,null,null,null,null,null,null,null,null,null,null,null,null,null,null,0]
[null,null,"Výkopy:306,2862",null,306.28620000000001,null,null,null,null,null,null,null,"Výkopy:306,2862"]
[null,null,"Odpočet zásypů zeminou:-213,72",null,-213.72,null,null,null,null,null,null,null,"Odpočet zásypů zeminou:-50,1555"]
[9,"174100050RAB","Zásyp jam,rýh a šachet štěrkodrtí fr. 0-63 mm včetně dodávky štěrkodrtě","m3",18.18,0,{"$f":"E46*F46","v":0},null,null,null,null,null,null,null,2,null,null,null,null,null,null,null,null,null,null,null,1,1,1,null,null,null,null,null,null,null,null,null,null,null,null,null,null,null,null,null,null,null,null,null,null,1,{"$f":"IF(AZ46=1,G46,0)","v":0},{"$f":"IF(AZ46=2,G46,0)","v":0},{"$f":"IF(AZ46=3,G46,0)","v":0},{"$f":"IF(AZ46=4,G46,0)","v":0},{"$f":"IF(AZ46=5,G46,0)","v":0},null,null,null,null,null,null,null,null,null,null,null,null,null,null,null,null,null,null,null,null,null,1,1,null,null,null,null,null,null,null,null,null,null,null,null,null,null,null,null,null,null,null,null,null,null,null,1.873]
[null,null,"Řad d 63x5,8 mm: 0*0,90*(1,75-0,15-0,063-0,30-0,20)",null,0,null,null,null,null,null,null,null,"Řad d 63x5,8 mm:7,00*0,90*(1,75-0,15-0,063-0,30-0,20)"]
[null,null,"Řad d 90x8,2 mm: 20*0,90*(1,75-0,15-0,09-0,30-0,20)",null,18.18,null,null,null,null,null,null,null,"Řad d 90x8,2 mm:158,82*0,90*(1,75-0,15-0,09-0,30-0,20)"]
[10,"174101101R00","Zásyp jam, rýh, šachet se zhutněním ","m3",182.88,0,{"$f":"E49*F49","v":0},null,null,null,null,null,null,null,2,null,null,null,null,null,null,null,null,null,null,null,1,1,1,null,null,null,null,null,null,null,null,null,null,null,null,null,null,null,null,null,null,null,null,null,null,1,{"$f":"IF(AZ49=1,G49,0)","v":0},{"$f":"IF(AZ49=2,G49,0)","v":0},{"$f":"IF(AZ49=3,G49,0)","v":0},{"$f":"IF(AZ49=4,G49,0)","v":0},{"$f":"IF(AZ49=5,G49,0)","v":0},null,null,null,null,null,null,null,null,null,null,null,null,null,null,null,null,null,null,null,null,null,1,1,null,null,null,null,null,null,null,null,null,null,null,null,null,null,null,null,null,null,null,null,null,null,null,0]
[null,null,"včetně strojního přemístění materiálu pro zásyp ze vzdálenosti do 10 m od okraje zásypu",null,null,null,null,null,null,null,null,"včetně strojního přemístění materiálu pro zásyp ze vzdálenosti do 10 m od okraje zásypu",null,null,3]
[11,"175100020RAB","Obsyp potrubí štěrkopískem - vlastní dodávka štěrkopísku. Obsypový materiál je k dispozici u investora na skládce ve vzdálenosti cca 0,5 km od místa stavby. ","m3",74.389899999999997,null,{"$f":"E51*F51","v":0},null,null,null,null,null,null,null,2,null,null,null,null,null,null,null,null,null,null,null,1,1,1,null,null,null,null,null,null,null,null,null,null,null,null,null,null,null,null,null,null,null,null,null,null,1,{"$f":"IF(AZ51=1,G51,0)","v":0},{"$f":"IF(AZ51=2,G51,0)","v":0},{"$f":"IF(AZ51=3,G51,0)","v":0},{"$f":"IF(AZ51=4,G51,0)","v":0},{"$f":"IF(AZ51=5,G51,0)","v":0},null,null,null,null,null,null,null,null,null,null,null,null,null,null,null,null,null,null,null,null,null,1,1,null,null,null,null,null,null,null,null,null,null,null,null,null,null,null,null,null,null,null,null,null,null,null,1.873]
[null,null,"Řad d 63x5,8 mm:60,74*(0,90*(0,063+0,30)-0,0315^2*Pi)",null,19.654399999999999,null,null,null,null,null,null,null,"Řad d 63x5,8 mm:60,74*(0,90*(0,063+0,30)-0,0315^2*Pi)"]
[null,null,"Řad d 90x8,2 mm:158,82*(0,90*(0,09+0,30)-0,045^2*Pi)",null,54.735500000000002,null,null,null,null,null,null,null,"Řad d 90x8,2 mm:158,82*(0,90*(0,09+0,30)-0,045^2*Pi)"]
[12,"199000002R00","Poplatek za skládku přebytků horniny - zemina bude uložena na pozemku investora a poplatek by neměl být účtován","m3",123.41,null,{"$f":"E54*F54","v":0},null,null,null,null,null,null,null,2,null,null,null,null,null,null,null,null,null,null,null,1,1,1,null,null,null,null,null,null,null,null,null,null,null,null,null,null,null,null,null,null,null,null,null,null,1,{"$f":"IF(AZ54=1,G54,0)","v":0},{"$f":"IF(AZ54=2,G54,0)","v":0},{"$f":"IF(AZ54=3,G54,0)","v":0},{"$f":"IF(AZ54=4,G54,0)","v":0},{"$f":"IF(AZ54=5,G54,0)","v":0},null,null,null,null,null,null,null,null,null,null,null,null,null,null,null,null,null,null,null,null,null,1,1,null,null,null,null,null,null,null,null,null,null,null,null,null,null,null,null,null,null,null,null,null,null,null,0]
[null,null,"Výkopy:306,2862",null,306.28620000000001,null,null,null,null,null,null,null,"Výkopy:306,2862"]
[null,null,"Odpočet zásypů zeminou:-182,88",null,-182.88,null,null,null,null,null,null,null,"Odpočet zásypů zeminou:-50,1555"]
[null,"Celkem za",{"$f":"CONCATENATE(B7,\" \",C7)","v":"1 Zemní práce"},null,null,null,{"$f":"SUM(G7:G56)","v":0},null,null,null,null,null,null,null,4,null,null,null,null,null,null,null,null,null,null,null,null,null,null,null,null,null,null,null,null,null,null,null,null,null,null,null,null,null,null,null,null,null,null,null,null,null,{"$f":"SUM(BA7:BA56)","v":0},{"$f":"SUM(BB7:BB56)","v":0},{"$f":"SUM(BC7:BC56)","v":0},{"$f":"SUM(BD7:BD56)","v":0},{"$f":"SUM(BE7:BE56)","v":0}]
["Díl:","11","Přípravné a přidružené práce",null,null,null,null,null,null,null,null,null,null,null,1]
[13,"113107610R00","Odstranění podkladu nad 50 m2,kam.drcené tl.10 cm ","m2",18,null,{"$f":"E59*F59","v":0},null,null,null,null,null,null,null,2,null,null,null,null,null,null,null,null,null,null,null,1,1,1,null,null,null,null,null,null,null,null,null,null,null,null,null,null,null,null,null,null,null,null,null,null,1,{"$f":"IF(AZ59=1,G59,0)","v":0},{"$f":"IF(AZ59=2,G59,0)","v":0},{"$f":"IF(AZ59=3,G59,0)","v":0},{"$f":"IF(AZ59=4,G59,0)","v":0},{"$f":"IF(AZ59=5,G59,0)","v":0},null,null,null,null,null,null,null,null,null,null,null,null,null,null,null,null,null,null,null,null,null,1,1,null,null,null,null,null,null,null,null,null,null,null,null,null,null,null,null,null,null,null,null,null,null,null,0]
[null,null,"Řad d 63x5,8 mm:",null,null,null,null,null,null,null,null,null,"Řad d 63x5,8 mm:7,00*0,90"]
[null,null,"Řad d 90x8,2 mm:20,00*0,90",null,18,null,null,null,null,null,null,null,"Řad d 90x8,2 mm:24,00*0,90"]
[14,"113107620R00","Odstranění podkladu nad 50 m2,kam.drcené tl.20 cm ","m2",124.94,null,{"$f":"E62*F62","v":0},null,null,null,null,null,null,null,2,null,null,null,null,null,null,null,null,null,null,null,1,1,1,null,null,null,null,null,null,null,null,null,null,null,null,null,null,null,null,null,null,null,null,null,null,1,{"$f":"IF(AZ62=1,G62,0)","v":0},{"$f":"IF(AZ62=2,G62,0)","v":0},{"$f":"IF(AZ62=3,G62,0)","v":0},{"$f":"IF(AZ62=4,G62,0)","v":0},{"$f":"IF(AZ62=5,G62,0)","v":0},null,null,null,null,null,null,null,null,null,null,null,null,null,null,null,null,null,null,null,null,null,1,1,null,null,null,null,null,null,null,null,null,null,null,null,null,null,null,null,null,null,null,null,null,null,null,0]
[null,null,"Řad d 90x8,2 mm:(158,82-20,00)*0,90",null,124.94,null,null,null,null,null,null,null,"Řad d 90x8,2 mm:(158,82-24,00)*0,90"]
[15,"113108310R00","Odstranění podkladu pl.do 50 m2, živice tl. 10 cm ","m2",18,null,{"$f":"E64*F64","v":0},null,null,null,null,null,null,null,2,null,null,null,null,null,null,null,null,null,null,null,1,1,1,null,null,null,null,null,null,null,null,null,null,null,null,null,null,null,null,null,null,null,null,null,null,1,{"$f":"IF(AZ64=1,G64,0)","v":0},{"$f":"IF(AZ64=2,G64,0)","v":0},{"$f":"IF(AZ64=3,G64,0)","v":0},{"$f":"IF(AZ64=4,G64,0)","v":0},{"$f":"IF(AZ64=5,G64,0)","v":0},null,null,null,null,null,null,null,null,null,null,null,null,null,null,null,null,null,null,null,null,null,1,1,null,null,null,null,null,null,null,null,null,null,null,null,null,null,null,null,null,null,null,null,null,null,null,0]
[null,null,"Řad d 63x5,8 mm:",null,0,null,null,null,null,null,null,null,"Řad d 63x5,8 mm:7,00*0,90"]
[null,null,"Řad d 90x8,2 mm:20,00*0,90",null,18,null,null,null,null,null,null,null,"Řad d 90x8,2 mm:24,00*0,90"]
[16,"919735112R00","Řezání stávajícího živičného krytu tl. 5 - 10 cm ","m",42.7,null,{"$f":"E67*F67","v":0},null,null,null,null,null,null,null,2,null,null,null,null,null,null,null,null,null,null,null,1,1,1,null,null,null,null,null,null,null,null,null,null,null,null,null,null,null,null,null,null,null,null,null,null,1,{"$f":"IF(AZ67=1,G67,0)","v":0},{"$f":"IF(AZ67=2,G67,0)","v":0},{"$f":"IF(AZ67=3,G67,0)","v":0},{"$f":"IF(AZ67=4,G67,0)","v":0},{"$f":"IF(AZ67=5,G67,0)","v":0},null,null,null,null,null,null,null,null,null,null,null,null,null,null,null,null,null,null,null,null,null,1,1,null,null,null,null,null,null,null,null,null,null,null,null,null,null,null,null,null,null,null,null,null,null,null,0]
[null,null,"Řad d 63x5,8 mm:",null,0,null,null,null,null,null,null,null,"Řad d 63x5,8 mm:7,00*2+0,90*1"]
[null,null,"Řad d 90x8,2 mm:(15,00+5,00)*2+0,90*3",null,42.7,null,null,null,null,null,null,null,"Řad d 90x8,2 mm:(17,00+7,00)*2+0,90*3"]
[17,"979082213RXX","Vodorovná doprava suti po suchu na skládku zhotovitele do vzdálenosti cca 0,5 km","t",87.664699999999996,null,{"$f":"E70*F70","v":0},null,null,null,null,null,null,null,2,null,null,null,null,null,null,null,null,null,null,null,1,1,1,null,null,null,null,null,null,null,null,null,null,null,null,null,null,null,null,null,null,null,null,null,null,1,{"$f":"IF(AZ70=1,G70,0)","v":0},{"$f":"IF(AZ70=2,G70,0)","v":0},{"$f":"IF(AZ70=3,G70,0)","v":0},{"$f":"IF(AZ70=4,G70,0)","v":0},{"$f":"IF(AZ70=5,G70,0)","v":0},null,null,null,null,null,null,null,null,null,null,null,null,null,null,null,null,null,null,null,null,null,1,1,null,null,null,null,null,null,null,null,null,null,null,null,null,null,null,null,null,null,null,null,null,null,null,0]
[18,"979990112RAS","Poplatek za skládku suti - obalovaný asfalt  - bude uloženo na pozemku investora a poplatek by neměl být účtován","t",28.14,0,{"$f":"E71*F71","v":0},null,null,null,null,null,null,null,2,null,null,null,null,null,null,null,null,null,null,null,1,10,10,null,null,null,null,null,null,null,null,null,null,null,null,null,null,null,null,null,null,null,null,null,null,1,{"$f":"IF(AZ71=1,G71,0)","v":0},{"$f":"IF(AZ71=2,G71,0)","v":0},{"$f":"IF(AZ71=3,G71,0)","v":0},{"$f":"IF(AZ71=4,G71,0)","v":0},{"$f":"IF(AZ71=5,G71,0)","v":0},null,null,null,null,null,null,null,null,null,null,null,null,null,null,null,null,null,null,null,null,null,1,10,null,null,null,null,null,null,null,null,null,null,null,null,null,null,null,null,null,null,null,null,null,null,null,0]
[19,"979999997STD","Poplatek za skládku suťi - šterky  - bude uloženo na pozemku investora a poplatek by neměl být účtován","t",59.53,0,{"$f":"E72*F72","v":0},null,null,null,null,null,null,null,2,null,null,null,null,null,null,null,null,null,null,null,1,10,10,null,null,null,null,null,null,null,null,null,null,null,null,null,null,null,null,null,null,null,null,null,null,1,{"$f":"IF(AZ72=1,G72,0)","v":0},{"$f":"IF(AZ72=2,G72,0)","v":0},{"$f":"IF(AZ72=3,G72,0)","v":0},{"$f":"IF(AZ72=4,G72,0)","v":0},{"$f":"IF(AZ72=5,G72,0)","v":0},null,null,null,null,null,null,null,null,null,null,null,null,null,null,null,null,null,null,null,null,null,1,10,null,null,null,null,null,null,null,null,null,null,null,null,null,null,null,null,null,null,null,null,null,null,null,0]
[null,"Celkem za",{"$f":"CONCATENATE(B58,\" \",C58)","v":"11 Přípravné a přidružené práce"},null,null,null,{"$f":"SUM(G58:G72)","v":0},null,null,null,null,null,null,null,4,null,null,null,null,null,null,null,null,null,null,null,null,null,null,null,null,null,null,null,null,null,null,null,null,null,null,null,null,null,null,null,null,null,null,null,null,null,{"$f":"SUM(BA58:BA72)","v":0},{"$f":"SUM(BB58:BB72)","v":0},{"$f":"SUM(BC58:BC72)","v":0},{"$f":"SUM(BD58:BD72)","v":0},{"$f":"SUM(BE58:BE72)","v":0}]
["Díl:","45","Podkladní a vedlejší konstrukce",null,null,null,null,null,null,null,null,null,null,null,1]
[20,"451572111R00","Lože pod potrubí z kameniva těženého 0 - 4 mm ","m3",29.640599999999999,null,{"$f":"E75*F75","v":0},null,null,null,null,null,null,null,2,null,null,null,null,null,null,null,null,null,null,null,1,1,1,null,null,null,null,null,null,null,null,null,null,null,null,null,null,null,null,null,null,null,null,null,null,1,{"$f":"IF(AZ75=1,G75,0)","v":0},{"$f":"IF(AZ75=2,G75,0)","v":0},{"$f":"IF(AZ75=3,G75,0)","v":0},{"$f":"IF(AZ75=4,G75,0)","v":0},{"$f":"IF(AZ75=5,G75,0)","v":0},null,null,null,null,null,null,null,null,null,null,null,null,null,null,null,null,null,null,null,null,null,1,1,null,null,null,null,null,null,null,null,null,null,null,null,null,null,null,null,null,null,null,null,null,null,null,1.873]
[null,null,"Řad d 63x5,8 mm:60,74*0,90*0,15",null,8.1998999999999995,null,null,null,null,null,null,null,"Řad d 63x5,8 mm:60,74*0,90*0,15"]
[null,null,"Řad d 90x8,2 mm:158,82*0,90*0,15",null,21.4407,null,null,null,null,null,null,null,"Řad d 90x8,2 mm:158,82*0,90*0,15"]
[21,"452313131R00","Bloky pro potrubí z betonu B 12,5 včetně nutného bednění","m3",0.98450000000000004,null,{"$f":"E78*F78","v":0},null,null,null,null,null,null,null,2,null,null,null,null,null,null,null,null,null,null,null,1,1,1,null,null,null,null,null,null,null,null,null,null,null,null,null,null,null,null,null,null,null,null,null,null,1,{"$f":"IF(AZ78=1,G78,0)","v":0},{"$f":"IF(AZ78=2,G78,0)","v":0},{"$f":"IF(AZ78=3,G78,0)","v":0},{"$f":"IF(AZ78=4,G78,0)","v":0},{"$f":"IF(AZ78=5,G78,0)","v":0},null,null,null,null,null,null,null,null,null,null,null,null,null,null,null,null,null,null,null,null,null,1,1,null,null,null,null,null,null,null,null,null,null,null,null,null,null,null,null,null,null,null,null,null,null,null,2.355]
[null,"Celkem za",{"$f":"CONCATENATE(B74,\" \",C74)","v":"45 Podkladní a vedlejší konstrukce"},null,null,null,{"$f":"SUM(G74:G78)","v":0},null,null,null,null,null,null,null,4,null,null,null,null,null,null,null,null,null,null,null,null,null,null,null,null,null,null,null,null,null,null,null,null,null,null,null,null,null,null,null,null,null,null,null,null,null,{"$f":"SUM(BA74:BA78)","v":0},{"$f":"SUM(BB74:BB78)","v":0},{"$f":"SUM(BC74:BC78)","v":0},{"$f":"SUM(BD74:BD78)","v":0},{"$f":"SUM(BE74:BE78)","v":0}]
["Díl:","5","Komunikace",null,null,null,null,null,null,null,null,null,null,null,1]
[22,"566903111R00","Vyspravení podkladu po překopech kam.hrubě drceným ","t",50.678899999999999,null,{"$f":"E81*F81","v":0},null,null,null,null,null,null,null,2,null,null,null,null,null,null,null,null,null,null,null,1,1,1,null,null,null,null,null,null,null,null,null,null,null,null,null,null,null,null,null,null,null,null,null,null,1,{"$f":"IF(AZ81=1,G81,0)","v":0},{"$f":"IF(AZ81=2,G81,0)","v":0},{"$f":"IF(AZ81=3,G81,0)","v":0},{"$f":"IF(AZ81=4,G81,0)","v":0},{"$f":"IF(AZ81=5,G81,0)","v":0},null,null,null,null,null,null,null,null,null,null,null,null,null,null,null,null,null,null,null,null,null,1,1,null,null,null,null,null,null,null,null,null,null,null,null,null,null,null,null,null,null,null,null,null,null,null,1.1000000000000001]
[null,null,"Řad d 63x5,8 mm:7,00*0,90*0,10*1,873",null,1.18,null,null,null,null,null,null,null,"Řad d 63x5,8 mm:7,00*0,90*0,10*1,873"]
[null,null,"Řad d 90x8,2 mm:24,00*0,90*0,10*1,873",null,4.0457000000000001,null,null,null,null,null,null,null,"Řad d 90x8,2 mm:24,00*0,90*0,10*1,873"]
[null,null,"Řad d 90x8,2 mm:(158,82-24,00)*0,90*0,20*1,873",null,45.453200000000002,null,null,null,null,null,null,null,"Řad d 90x8,2 mm:(158,82-24,00)*0,90*0,20*1,873"]
[23,"566904111R00","Vyspravení podkladu po překopech kam.obal.asfaltem ","t",4.5,null,{"$f":"E85*F85","v":0},null,null,null,null,null,null,null,2,null,null,null,null,null,null,null,null,null,null,null,1,1,1,null,null,null,null,null,null,null,null,null,null,null,null,null,null,null,null,null,null,null,null,null,null,1,{"$f":"IF(AZ85=1,G85,0)","v":0},{"$f":"IF(AZ85=2,G85,0)","v":0},{"$f":"IF(AZ85=3,G85,0)","v":0},{"$f":"IF(AZ85=4,G85,0)","v":0},{"$f":"IF(AZ85=5,G85,0)","v":0},null,null,null,null,null,null,null,null,null,null,null,null,null,null,null,null,null,null,null,null,null,1,1,null,null,null,null,null,null,null,null,null,null,null,null,null,null,null,null,null,null,null,null,null,null,null,1]
[null,null,"Řad d 63x5,8 mm:",null,0,null,null,null,null,null,null,null,"Řad d 63x5,8 mm:7,00*0,90*0,10*2,5"]
[null,null,"Řad d 90x8,2 mm:20,00*0,90*0,10*2,5",null,4.5,null,null,null,null,null,null,null,"Řad d 90x8,2 mm:24,00*0,90*0,10*2,5"]
[null,"Celkem za",{"$f":"CONCATENATE(B80,\" \",C80)","v":"5 Komunikace"},null,null,null,{"$f":"SUM(G80:G87)","v":0},null,null,null,null,null,null,null,4,null,null,null,null,null,null,null,null,null,null,null,null,null,null,null,null,null,null,null,null,null,null,null,null,null,null,null,null,null,null,null,null,null,null,null,null,null,{"$f":"SUM(BA80:BA87)","v":0},{"$f":"SUM(BB80:BB87)","v":0},{"$f":"SUM(BC80:BC87)","v":0},{"$f":"SUM(BD80:BD87)","v":0},{"$f":"SUM(BE80:BE87)","v":0}]
["Díl:","8","Trubní vedení",null,null,null,null,null,null,null,null,null,null,null,1]
[24,"850245121R00","Výřez nebo výsek na potrubí DN 80 ","kus",1,null,{"$f":"E90*F90","v":0},null,null,null,null,null,null,null,2,null,null,null,null,null,null,null,null,null,null,null,1,1,1,null,null,null,null,null,null,null,null,null,null,null,null,null,null,null,null,null,null,null,null,null,null,1,{"$f":"IF(AZ90=1,G90,0)","v":0},{"$f":"IF(AZ90=2,G90,0)","v":0},{"$f":"IF(AZ90=3,G90,0)","v":0},{"$f":"IF(AZ90=4,G90,0)","v":0},{"$f":"IF(AZ90=5,G90,0)","v":0},null,null,null,null,null,null,null,null,null,null,null,null,null,null,null,null,null,null,null,null,null,1,1,null,null,null,null,null,null,null,null,null,null,null,null,null,null,null,null,null,null,null,null,null,null,null,0]
[null,null,"Položky výřezu nebo výseku na potrubí z trub PE tlakových jsou určeny pro dva řezy nebo seky prováděné na potrubí dodatečně. V položkách jsou zakalkulovány náklady na",null,null,null,null,null,null,null,null,"Položky výřezu nebo výseku na potrubí z trub PE tlakových jsou určeny pro dva řezy nebo seky prováděné na potrubí dodatečně. V položkách jsou zakalkulovány náklady na",null,null,3]
[null,null,"- ohlášení uzavírání vody",null,null,null,null,null,null,null,null,"- ohlášení uzavírání vody",null,null,3]
[null,null,"- uzavření a otevření šoupat",null,null,null,null,null,null,null,null,"- uzavření a otevření šoupat",null,null,3]
[null,null,"- vypuštění a napuštění vody",null,null,null,null,null,null,null,null,"- vypuštění a napuštění vody",null,null,3]
[null,null,"- odvzdušnění potrubí",null,null,null,null,null,null,null,null,"- odvzdušnění potrubí",null,null,3]
[25,"857242121R00","Montáž tvarovek litin. jednoos.přír. výkop DN 80 včetně nerezových spoj. prvků a obandážování spoje","kus",7,null,{"$f":"E96*F96","v":0},null,null,null,null,null,null,null,2,null,null,null,null,null,null,null,null,null,null,null,1,1,1,null,null,null,null,null,null,null,null,null,null,null,null,null,null,null,null,null,null,null,null,null,null,1,{"$f":"IF(AZ96=1,G96,0)","v":0},{"$f":"IF(AZ96=2,G96,0)","v":0},{"$f":"IF(AZ96=3,G96,0)","v":0},{"$f":"IF(AZ96=4,G96,0)","v":0},{"$f":"IF(AZ96=5,G96,0)","v":0},null,null,null,null,null,null,null,null,null,null,null,null,null,null,null,null,null,null,null,null,null,1,1,null,null,null,null,null,null,null,null,null,null,null,null,null,null,null,null,null,null,null,null,null,null,null,2.2000000000000001E-4]
[null,null,"LN + TP D90/DN80:2",null,2,null,null,null,null,null,null,null,"LN + TP D90/DN80:2"]
[null,null,"LN + TP D63/DN50:2",null,2,null,null,null,null,null,null,null,"LN + TP D63/DN50:2"]
[null,null,"X DN80:1",null,1,null,null,null,null,null,null,null,"X DN80:1"]
[null,null,"XG DN50/1\":1",null,1,null,null,null,null,null,null,null,"XG DN50/1\":1"]
[null,null,"FFK 22,5° DN50:1",null,1,null,null,null,null,null,null,null,"FFK 22,5° DN50:1"]
[26,"857244121R00","Montáž tvarovek litin. odboč. přír. výkop DN 80 včetně nerezových spoj. prvků a obandážování spoje","kus",1,null,{"$f":"E102*F102","v":0},null,null,null,null,null,null,null,2,null,null,null,null,null,null,null,null,null,null,null,1,1,1,null,null,null,null,null,null,null,null,null,null,null,null,null,null,null,null,null,null,null,null,null,null,1,{"$f":"IF(AZ102=1,G102,0)","v":0},{"$f":"IF(AZ102=2,G102,0)","v":0},{"$f":"IF(AZ102=3,G102,0)","v":0},{"$f":"IF(AZ102=4,G102,0)","v":0},{"$f":"IF(AZ102=5,G102,0)","v":0},null,null,null,null,null,null,null,null,null,null,null,null,null,null,null,null,null,null,null,null,null,1,1,null,null,null,null,null,null,null,null,null,null,null,null,null,null,null,null,null,null,null,null,null,null,null,3.2000000000000003E-4]
[null,null,"T DN80/50:1",null,1,null,null,null,null,null,null,null,"T DN80/50:1"]
[27,"871161121R00","Montáž trubek polyetylenových ve výkopu d 32 mm ","m",2,null,{"$f":"E104*F104","v":0},null,null,null,null,null,null,null,2,null,null,null,null,null,null,null,null,null,null,null,1,1,1,null,null,null,null,null,null,null,null,null,null,null,null,null,null,null,null,null,null,null,null,null,null,1,{"$f":"IF(AZ104=1,G104,0)","v":0},{"$f":"IF(AZ104=2,G104,0)","v":0},{"$f":"IF(AZ104=3,G104,0)","v":0},{"$f":"IF(AZ104=4,G104,0)","v":0},{"$f":"IF(AZ104=5,G104,0)","v":0},null,null,null,null,null,null,null,null,null,null,null,null,null,null,null,null,null,null,null,null,null,1,1,null,null,null,null,null,null,null,null,null,null,null,null,null,null,null,null,null,null,null,null,null,null,null,0]
[null,null,"V položce je uvažováno použití svitku.",null,null,null,null,null,null,null,null,"V položce je uvažováno použití svitku.",null,null,3]
[null,null,"Odkalení d 32x3,0 mm:2,00",null,2,null,null,null,null,null,null,null,"Odkalení d 32x3,0 mm:2,00"]
[28,"871211121R00","Montáž trubek polyetylenových ve výkopu d 63 mm ","m",60.74,null,{"$f":"E107*F107","v":0},null,null,null,null,null,null,null,2,null,null,null,null,null,null,null,null,null,null,null,1,1,1,null,null,null,null,null,null,null,null,null,null,null,null,null,null,null,null,null,null,null,null,null,null,1,{"$f":"IF(AZ107=1,G107,0)","v":0},{"$f":"IF(AZ107=2,G107,0)","v":0},{"$f":"IF(AZ107=3,G107,0)","v":0},{"$f":"IF(AZ107=4,G107,0)","v":0},{"$f":"IF(AZ107=5,G107,0)","v":0},null,null,null,null,null,null,null,null,null,null,null,null,null,null,null,null,null,null,null,null,null,1,1,null,null,null,null,null,null,null,null,null,null,null,null,null,null,null,null,null,null,null,null,null,null,null,0]
[null,null,"V položce je uvažováno s použitím svitku včetně montáže elektrotvarovek.",null,null,null,null,null,null,null,null,"V položce je uvažováno s použitím svitku včetně montáže elektrotvarovek.",null,null,3]
[null,null,"Řad d 63x5,8 mm:60,74",null,60.74,null,null,null,null,null,null,null,"Řad d 63x5,8 mm:60,74"]
[29,"871241121R00","Montáž potrubí polyetylenového ve výkopu d 90 mm ","m",158.82,null,{"$f":"E110*F110","v":0},null,null,null,null,null,null,null,2,null,null,null,null,null,null,null,null,null,null,null,1,1,1,null,null,null,null,null,null,null,null,null,null,null,null,null,null,null,null,null,null,null,null,null,null,1,{"$f":"IF(AZ110=1,G110,0)","v":0},{"$f":"IF(AZ110=2,G110,0)","v":0},{"$f":"IF(AZ110=3,G110,0)","v":0},{"$f":"IF(AZ110=4,G110,0)","v":0},{"$f":"IF(AZ110=5,G110,0)","v":0},null,null,null,null,null,null,null,null,null,null,null,null,null,null,null,null,null,null,null,null,null,1,1,null,null,null,null,null,null,null,null,null,null,null,null,null,null,null,null,null,null,null,null,null,null,null,0]
[null,null,"V položce je uvažováno s jedním spojem na 6 m potrubí včetně montáže elektrotvarovek.",null,null,null,null,null,null,null,null,"V položce je uvažováno s jedním spojem na 6 m potrubí včetně montáže elektrotvarovek.",null,null,3]
[null,null,"Řad d 90x8,2 mm:158,82",null,158.82,null,null,null,null,null,null,null,"Řad d 90x8,2 mm:158,82"]
[30,"891211111R00","Montáž vodovodních šoupátek ve výkopu DN 50 ","kus",2,null,{"$f":"E113*F113","v":0},null,null,null,null,null,null,null,2,null,null,null,null,null,null,null,null,null,null,null,1,1,1,null,null,null,null,null,null,null,null,null,null,null,null,null,null,null,null,null,null,null,null,null,null,1,{"$f":"IF(AZ113=1,G113,0)","v":0},{"$f":"IF(AZ113=2,G113,0)","v":0},{"$f":"IF(AZ113=3,G113,0)","v":0},{"$f":"IF(AZ113=4,G113,0)","v":0},{"$f":"IF(AZ113=5,G113,0)","v":0},null,null,null,null,null,null,null,null,null,null,null,null,null,null,null,null,null,null,null,null,null,1,1,null,null,null,null,null,null,null,null,null,null,null,null,null,null,null,null,null,null,null,null,null,null,null,2.1000000000000001E-4]
[null,null,"Položka je určena pro montáž vodovodních šoupátek v otevřeném výkopu nebo v šachtách s osazením zemní soupravy (bez poklopů).",null,null,null,null,null,null,null,null,"Položka je určena pro montáž vodovodních šoupátek v otevřeném výkopu nebo v šachtách s osazením zemní soupravy (bez poklopů).",null,null,3]
[null,null,"Š DN50:2",null,2,null,null,null,null,null,null,null,"Š DN50:2"]
[31,"891241111R00","Montáž vodovodních šoupátek ve výkopu DN 80 ","kus",1,null,{"$f":"E116*F116","v":0},null,null,null,null,null,null,null,2,null,null,null,null,null,null,null,null,null,null,null,1,1,1,null,null,null,null,null,null,null,null,null,null,null,null,null,null,null,null,null,null,null,null,null,null,1,{"$f":"IF(AZ116=1,G116,0)","v":0},{"$f":"IF(AZ116=2,G116,0)","v":0},{"$f":"IF(AZ116=3,G116,0)","v":0},{"$f":"IF(AZ116=4,G116,0)","v":0},{"$f":"IF(AZ116=5,G116,0)","v":0},null,null,null,null,null,null,null,null,null,null,null,null,null,null,null,null,null,null,null,null,null,1,1,null,null,null,null,null,null,null,null,null,null,null,null,null,null,null,null,null,null,null,null,null,null,null,2.2000000000000001E-4]
[null,null,"Položka je určena pro montáž vodovodních šoupátek v otevřeném výkopu nebo v šachtách s osazením zemní soupravy (bez poklopů).",null,null,null,null,null,null,null,null,"Položka je určena pro montáž vodovodních šoupátek v otevřeném výkopu nebo v šachtách s osazením zemní soupravy (bez poklopů).",null,null,3]
[null,null,"Š DN80:1",null,1,null,null,null,null,null,null,null,"Š DN80:1"]
[32,"891249111RV0","Montáž navrtávacích pasů s ventilem na DN 80 včetně zemní soupravy","kus",4,null,{"$f":"E119*F119","v":0},null,null,null,null,null,null,null,2,null,null,null,null,null,null,null,null,null,null,null,1,1,1,null,null,null,null,null,null,null,null,null,null,null,null,null,null,null,null,null,null,null,null,null,null,1,{"$f":"IF(AZ119=1,G119,0)","v":0},{"$f":"IF(AZ119=2,G119,0)","v":0},{"$f":"IF(AZ119=3,G119,0)","v":0},{"$f":"IF(AZ119=4,G119,0)","v":0},{"$f":"IF(AZ119=5,G119,0)","v":0},null,null,null,null,null,null,null,null,null,null,null,null,null,null,null,null,null,null,null,null,null,1,1,null,null,null,null,null,null,null,null,null,null,null,null,null,null,null,null,null,null,null,null,null,null,null,0]
[null,null,"VP1 d 32x3,0 mm:1",null,1,null,null,null,null,null,null,null,"VP1 d 32x3,0 mm:1"]
[null,null,"VP2 d 32x3,0 mm :1",null,1,null,null,null,null,null,null,null,"VP2 d 32x3,0 mm :1"]
[null,null,"VP3 d 32x3,0 mm:1",null,1,null,null,null,null,null,null,null,"VP3 d 32x3,0 mm:1"]
[null,null,"VP4 d 32x3,0 mm:1",null,1,null,null,null,null,null,null,null,"VP4 d 32x3,0 mm:1"]
[33,"892233111R00","Desinfekce vodovodního potrubí DN 70 ","m",62.74,null,{"$f":"E124*F124","v":0},null,null,null,null,null,null,null,2,null,null,null,null,null,null,null,null,null,null,null,1,1,1,null,null,null,null,null,null,null,null,null,null,null,null,null,null,null,null,null,null,null,null,null,null,1,{"$f":"IF(AZ124=1,G124,0)","v":0},{"$f":"IF(AZ124=2,G124,0)","v":0},{"$f":"IF(AZ124=3,G124,0)","v":0},{"$f":"IF(AZ124=4,G124,0)","v":0},{"$f":"IF(AZ124=5,G124,0)","v":0},null,null,null,null,null,null,null,null,null,null,null,null,null,null,null,null,null,null,null,null,null,1,1,null,null,null,null,null,null,null,null,null,null,null,null,null,null,null,null,null,null,null,null,null,null,null,0]
[null,null,"V položce jsou zakalkulovány náklady na napuštění a vypuštění vody, dodání vody a desinfekčního prostředku a na bakteriologický rozbor vody.",null,null,null,null,null,null,null,null,"V položce jsou zakalkulovány náklady na napuštění a vypuštění vody, dodání vody a desinfekčního prostředku a na bakteriologický rozbor vody.",null,null,3]
[null,null,"Řad d 63x5,8 mm:60,74",null,60.74,null,null,null,null,null,null,null,"Řad d 63x5,8 mm:60,74"]
[null,null,"Odkalení d 32x3,0 mm:2,00",null,2,null,null,null,null,null,null,null,"Odkalení d 32x3,0 mm:2,00"]
[34,"892241111R00","Tlaková zkouška vodovodního potrubí DN 80 ","m",221.56,null,{"$f":"E128*F128","v":0},null,null,null,null,null,null,null,2,null,null,null,null,null,null,null,null,null,null,null,1,1,1,null,null,null,null,null,null,null,null,null,null,null,null,null,null,null,null,null,null,null,null,null,null,1,{"$f":"IF(AZ128=1,G128,0)","v":0},{"$f":"IF(AZ128=2,G128,0)","v":0},{"$f":"IF(AZ128=3,G128,0)","v":0},{"$f":"IF(AZ128=4,G128,0)","v":0},{"$f":"IF(AZ128=5,G128,0)","v":0},null,null,null,null,null,null,null,null,null,null,null,null,null,null,null,null,null,null,null,null,null,1,1,null,null,null,null,null,null,null,null,null,null,null,null,null,null,null,null,null,null,null,null,null,null,null,0]
[null,null,"V položce jsou započteny náklady na přísun, montáž, demontáž a odsun zkoušecího čerpadla, napuštění tlakovou vodou a dodání vody pro tlakovou zkoušku.",null,null,null,null,null,null,null,null,"V položce jsou započteny náklady na přísun, montáž, demontáž a odsun zkoušecího čerpadla, napuštění tlakovou vodou a dodání vody pro tlakovou zkoušku.",null,null,3]
[null,null,"Součástí položky je i zajištění konců zkoušeného potrubí.",null,null,null,null,null,null,null,null,"Součástí položky je i zajištění konců zkoušeného potrubí.",null,null,3]
[null,null,"Řad d 90x8,2 mm:158,82",null,158.82,null,null,null,null,null,null,null,"Řad d 90x8,2 mm:158,82"]
[null,null,"Řad d 63x5,8 mm:60,74",null,60.74,null,null,null,null,null,null,null,"Řad d 63x5,8 mm:60,74"]
[null,null,"Odkalení d 32x3,0 mm:2,00",null,2,null,null,null,null,null,null,null,"Odkalení d 32x3,0 mm:2,00"]
[35,"892273111R00","Desinfekce vodovodního potrubí DN 125 ","m",158.82,null,{"$f":"E134*F134","v":0},null,null,null,null,null,null,null,2,null,null,null,null,null,null,null,null,null,null,null,1,1,1,null,null,null,null,null,null,null,null,null,null,null,null,null,null,null,null,null,null,null,null,null,null,1,{"$f":"IF(AZ134=1,G134,0)","v":0},{"$f":"IF(AZ134=2,G134,0)","v":0},{"$f":"IF(AZ134=3,G134,0)","v":0},{"$f":"IF(AZ134=4,G134,0)","v":0},{"$f":"IF(AZ134=5,G134,0)","v":0},null,null,null,null,null,null,null,null,null,null,null,null,null,null,null,null,null,null,null,null,null,1,1,null,null,null,null,null,null,null,null,null,null,null,null,null,null,null,null,null,null,null,null,null,null,null,0]
[null,null,"V položce jsou zakalkulovány náklady na napuštění a vypuštění vody, dodání vody a desinfekčního prostředku a na bakteriologický rozbor vody.",null,null,null,null,null,null,null,null,"V položce jsou zakalkulovány náklady na napuštění a vypuštění vody, dodání vody a desinfekčního prostředku a na bakteriologický rozbor vody.",null,null,3]
[null,null,"Řad d 90x8,2 mm:158,82",null,158.82,null,null,null,null,null,null,null,"Řad d 90x8,2 mm:158,82"]
[36,"899401111R00","Osazení poklopů litinových ventilových ","kus",4,null,{"$f":"E137*F137","v":0},null,null,null,null,null,null,null,2,null,null,null,null,null,null,null,null,null,null,null,1,1,1,null,null,null,null,null,null,null,null,null,null,null,null,null,null,null,null,null,null,null,null,null,null,1,{"$f":"IF(AZ137=1,G137,0)","v":0},{"$f":"IF(AZ137=2,G137,0)","v":0},{"$f":"IF(AZ137=3,G137,0)","v":0},{"$f":"IF(AZ137=4,G137,0)","v":0},{"$f":"IF(AZ137=5,G137,0)","v":0},null,null,null,null,null,null,null,null,null,null,null,null,null,null,null,null,null,null,null,null,null,1,1,null,null,null,null,null,null,null,null,null,null,null,null,null,null,null,null,null,null,null,null,null,null,null,5.8209999999999998E-2]
[null,null,"V položkách osazení poklopů jsou zakalkulovány i náklady na osazení podkladové desky.",null,null,null,null,null,null,null,null,"V položkách osazení poklopů jsou zakalkulovány i náklady na osazení podkladové desky.",null,null,3]
[null,null,"VP1 d 32x3,0 mm:1",null,1,null,null,null,null,null,null,null,"VP1 d 32x3,0 mm:1"]
[null,null,"VP2 d 32x3,0 mm :1",null,1,null,null,null,null,null,null,null,"VP2 d 32x3,0 mm :1"]
[null,null,"VP3 d 32x3,0 mm:1",null,1,null,null,null,null,null,null,null,"VP3 d 32x3,0 mm:1"]
[null,null,"VP4 d 32x3,0 mm:1",null,1,null,null,null,null,null,null,null,"VP4 d 32x3,0 mm:1"]
[37,"899401112R00","Osazení poklopů litinových šoupátkových ","kus",3,null,{"$f":"E143*F143","v":0},null,null,null,null,null,null,null,2,null,null,null,null,null,null,null,null,null,null,null,1,1,1,null,null,null,null,null,null,null,null,null,null,null,null,null,null,null,null,null,null,null,null,null,null,1,{"$f":"IF(AZ143=1,G143,0)","v":0},{"$f":"IF(AZ143=2,G143,0)","v":0},{"$f":"IF(AZ143=3,G143,0)","v":0},{"$f":"IF(AZ143=4,G143,0)","v":0},{"$f":"IF(AZ143=5,G143,0)","v":0},null,null,null,null,null,null,null,null,null,null,null,null,null,null,null,null,null,null,null,null,null,1,1,null,null,null,null,null,null,null,null,null,null,null,null,null,null,null,null,null,null,null,null,null,null,null,0.11178]
[null,null,"V položkách osazení poklopů jsou zakalkulovány i náklady na osazení podkladové desky.",null,null,null,null,null,null,null,null,"V položkách osazení poklopů jsou zakalkulovány i náklady na osazení podkladové desky.",null,null,3]
[null,null,"Š DN50:2",null,2,null,null,null,null,null,null,null,"Š DN50:2"]
[null,null,"Š DN80:1",null,1,null,null,null,null,null,null,null,"Š DN80:1"]
[38,"899401113R00","Osazení poklopů litinových hydrantových ","kus",1,null,{"$f":"E147*F147","v":0},null,null,null,null,null,null,null,2,null,null,null,null,null,null,null,null,null,null,null,1,1,1,null,null,null,null,null,null,null,null,null,null,null,null,null,null,null,null,null,null,null,null,null,null,1,{"$f":"IF(AZ147=1,G147,0)","v":0},{"$f":"IF(AZ147=2,G147,0)","v":0},{"$f":"IF(AZ147=3,G147,0)","v":0},{"$f":"IF(AZ147=4,G147,0)","v":0},{"$f":"IF(AZ147=5,G147,0)","v":0},null,null,null,null,null,null,null,null,null,null,null,null,null,null,null,null,null,null,null,null,null,1,1,null,null,null,null,null,null,null,null,null,null,null,null,null,null,null,null,null,null,null,null,null,null,null,0.29823]
[null,null,"Odkalení:1",null,1,null,null,null,null,null,null,null,"Odkalení:1"]
[39,"899713111R00","Orientační tabulky (malá, velká) na sloupku,základ vč.jejich dodávky","kus",8,null,{"$f":"E149*F149","v":0},null,null,null,null,null,null,null,2,null,null,null,null,null,null,null,null,null,null,null,1,1,1,null,null,null,null,null,null,null,null,null,null,null,null,null,null,null,null,null,null,null,null,null,null,1,{"$f":"IF(AZ149=1,G149,0)","v":0},{"$f":"IF(AZ149=2,G149,0)","v":0},{"$f":"IF(AZ149=3,G149,0)","v":0},{"$f":"IF(AZ149=4,G149,0)","v":0},{"$f":"IF(AZ149=5,G149,0)","v":0},null,null,null,null,null,null,null,null,null,null,null,null,null,null,null,null,null,null,null,null,null,1,1,null,null,null,null,null,null,null,null,null,null,null,null,null,null,null,null,null,null,null,null,null,null,null,2.4000000000000001E-4]
[null,null,"Š DN50:2",null,2,null,null,null,null,null,null,null,"Š DN50:2"]
[null,null,"Š DN80:1",null,1,null,null,null,null,null,null,null,"Š DN80:1"]
[null,null,"Odkalení:1",null,1,null,null,null,null,null,null,null,"Odkalení:1"]
[null,null,"VP1 d 32x3,0 mm:1",null,1,null,null,null,null,null,null,null,"VP1 d 32x3,0 mm:1"]
[null,null,"VP2 d 32x3,0 mm :1",null,1,null,null,null,null,null,null,null,"VP2 d 32x3,0 mm :1"]
[null,null,"VP3 d 32x3,0 mm:1",null,1,null,null,null,null,null,null,null,"VP3 d 32x3,0 mm:1"]
[null,null,"VP4 d 32x3,0 mm:1",null,1,null,null,null,null,null,null,null,"VP4 d 32x3,0 mm:1"]
[40,"899721112R00","Fólie výstražná z PVC, šířka 30 cm ","m",219.56,null,{"$f":"E157*F157","v":0},null,null,null,null,null,null,null,2,null,null,null,null,null,null,null,null,null,null,null,1,1,1,null,null,null,null,null,null,null,null,null,null,null,null,null,null,null,null,null,null,null,null,null,null,1,{"$f":"IF(AZ157=1,G157,0)","v":0},{"$f":"IF(AZ157=2,G157,0)","v":0},{"$f":"IF(AZ157=3,G157,0)","v":0},{"$f":"IF(AZ157=4,G157,0)","v":0},{"$f":"IF(AZ157=5,G157,0)","v":0},null,null,null,null,null,null,null,null,null,null,null,null,null,null,null,null,null,null,null,null,null,1,1,null,null,null,null,null,null,null,null,null,null,null,null,null,null,null,null,null,null,null,null,null,null,null,0]
[null,null,"Řad d 90x8,2 mm:158,82",null,158.82,null,null,null,null,null,null,null,"Řad d 90x8,2 mm:158,82"]
[null,null,"Řad d 63x5,8 mm:60,74",null,60.74,null,null,null,null,null,null,null,"Řad d 63x5,8 mm:60,74"]
[41,"899800526RT8","Dodávka a položení identifikačního vodiče CY 6 mm2 proměření včetně revize vodiče","m",249.56,null,{"$f":"E160*F160","v":0},null,null,null,null,null,null,null,2,null,null,null,null,null,null,null,null,null,null,null,1,0,0,null,null,null,null,null,null,null,null,null,null,null,null,null,null,null,null,null,null,null,null,null,null,1,{"$f":"IF(AZ160=1,G160,0)","v":0},{"$f":"IF(AZ160=2,G160,0)","v":0},{"$f":"IF(AZ160=3,G160,0)","v":0},{"$f":"IF(AZ160=4,G160,0)","v":0},{"$f":"IF(AZ160=5,G160,0)","v":0},null,null,null,null,null,null,null,null,null,null,null,null,null,null,null,null,null,null,null,null,null,1,0,null,null,null,null,null,null,null,null,null,null,null,null,null,null,null,null,null,null,null,null,null,null,null,4.0000000000000003E-5]
[null,null,"Řad d 90x8,2 mm:158,82",null,158.82,null,null,null,null,null,null,null,"Řad d 90x8,2 mm:158,82"]
[null,null,"Řad d 63x5,8 mm:60,74",null,60.74,null,null,null,null,null,null,null,"Řad d 63x5,8 mm:60,74"]
[null,null,"Odkalení d 32x3,0 mm:2,00",null,2,null,null,null,null,null,null,null,"Odkalení d 32x3,0 mm:2,00"]
[null,null,"Vyvedení pro:",null,0,null,null,null,null,null,null,null,"Vyvedení pro:"]
[null,null,"Š DN50:2,00*2*2",null,8,null,null,null,null,null,null,null,"Š DN50:2,00*2*2"]
[null,null,"Š DN80:2,00*2*1",null,4,null,null,null,null,null,null,null,"Š DN80:2,00*2*1"]
[null,null,"VP1 d 32x3,0 mm:2,00*2*1",null,4,null,null,null,null,null,null,null,"VP1 d 32x3,0 mm:2,00*2*1"]
[null,null,"VP2 d 32x3,0 mm :2,00*2*1",null,4,null,null,null,null,null,null,null,"VP2 d 32x3,0 mm :2,00*2*1"]
[null,null,"VP3 d 32x3,0 mm:2,00*2*1",null,4,null,null,null,null,null,null,null,"VP3 d 32x3,0 mm:2,00*2*1"]
[null,null,"VP4 d 32x3,0 mm:2,00*2*1",null,4,null,null,null,null,null,null,null,"VP4 d 32x3,0 mm:2,00*2*1"]
[42,"28613007.M","Elektrospojka d 63 mm PE100 SDR11","kus",2.0299999999999998,null,{"$f":"E171*F171","v":0},null,null,null,null,null,null,null,2,null,null,null,null,null,null,null,null,null,null,null,3,1,"28613007.M",null,null,null,null,null,null,null,null,null,null,null,null,null,null,null,null,null,null,null,null,null,null,1,{"$f":"IF(AZ171=1,G171,0)","v":0},{"$f":"IF(AZ171=2,G171,0)","v":0},{"$f":"IF(AZ171=3,G171,0)","v":0},{"$f":"IF(AZ171=4,G171,0)","v":0},{"$f":"IF(AZ171=5,G171,0)","v":0},null,null,null,null,null,null,null,null,null,null,null,null,null,null,null,null,null,null,null,null,null,3,1,null,null,null,null,null,null,null,null,null,null,null,null,null,null,null,null,null,null,null,null,null,null,null,6.9999999999999994E-5]
[null,null,"Řad d 63x5,8 mm:",null,0,null,null,null,null,null,null,null,"Řad d 63x5,8 mm:"]
[null,null,"Elektrospojka DN63:2*1,015",null,2.0299999999999998,null,null,null,null,null,null,null,"Elektrospojka DN63:2*1,015"]
[43,"28613009.M","Elektrospojka d 90 mm PE100 SDR11","kus",15.225,null,{"$f":"E174*F174","v":0},null,null,null,null,null,null,null,2,null,null,null,null,null,null,null,null,null,null,null,3,1,"28613009.M",null,null,null,null,null,null,null,null,null,null,null,null,null,null,null,null,null,null,null,null,null,null,1,{"$f":"IF(AZ174=1,G174,0)","v":0},{"$f":"IF(AZ174=2,G174,0)","v":0},{"$f":"IF(AZ174=3,G174,0)","v":0},{"$f":"IF(AZ174=4,G174,0)","v":0},{"$f":"IF(AZ174=5,G174,0)","v":0},null,null,null,null,null,null,null,null,null,null,null,null,null,null,null,null,null,null,null,null,null,3,1,null,null,null,null,null,null,null,null,null,null,null,null,null,null,null,null,null,null,null,null,null,null,null,6.9999999999999994E-5]
[null,null,"Řad d 90x8,2 mm:",null,0,null,null,null,null,null,null,null,"Řad d 90x8,2 mm:"]
[null,null,"Elektrospojka DN90:15*1,015",null,15.225,null,null,null,null,null,null,null,"Elektrospojka DN90:15*1,015"]
[44,"28613064.M","Elektrokoleno 30° d 90 mm PE100 SDR11","kus",4.0599999999999996,null,{"$f":"E177*F177","v":0},null,null,null,null,null,null,null,2,null,null,null,null,null,null,null,null,null,null,null,3,1,"28613064.M",null,null,null,null,null,null,null,null,null,null,null,null,null,null,null,null,null,null,null,null,null,null,1,{"$f":"IF(AZ177=1,G177,0)","v":0},{"$f":"IF(AZ177=2,G177,0)","v":0},{"$f":"IF(AZ177=3,G177,0)","v":0},{"$f":"IF(AZ177=4,G177,0)","v":0},{"$f":"IF(AZ177=5,G177,0)","v":0},null,null,null,null,null,null,null,null,null,null,null,null,null,null,null,null,null,null,null,null,null,3,1,null,null,null,null,null,null,null,null,null,null,null,null,null,null,null,null,null,null,null,null,null,null,null,6.9999999999999994E-5]
[null,null,"Řad d 90x8,2 mm:",null,0,null,null,null,null,null,null,null,"Řad d 90x8,2 mm:"]
[null,null,"Elektrokoleno 30° DN90:4*1,015",null,4.0599999999999996,null,null,null,null,null,null,null,"Elektrokoleno 30° DN90:4*1,015"]
[45,"28613353.M","Lemový nákružek + točivá příruba d63/DN50 PE100 SDR11 / PP-ocel","kus",2.0299999999999998,null,{"$f":"E180*F180","v":0},null,null,null,null,null,null,null,2,null,null,null,null,null,null,null,null,null,null,null,3,1,"28613353.M",null,null,null,null,null,null,null,null,null,null,null,null,null,null,null,null,null,null,null,null,null,null,1,{"$f":"IF(AZ180=1,G180,0)","v":0},{"$f":"IF(AZ180=2,G180,0)","v":0},{"$f":"IF(AZ180=3,G180,0)","v":0},{"$f":"IF(AZ180=4,G180,0)","v":0},{"$f":"IF(AZ180=5,G180,0)","v":0},null,null,null,null,null,null,null,null,null,null,null,null,null,null,null,null,null,null,null,null,null,3,1,null,null,null,null,null,null,null,null,null,null,null,null,null,null,null,null,null,null,null,null,null,null,null,0]
[null,null,"LN + TP D63/DN50:2*1,015",null,2.0299999999999998,null,null,null,null,null,null,null,"LN + TP D63/DN50:2*1,015"]
[46,"28613355.M","Lemový nákružek + točivá příruba d90/DN80 PE100 SDR11 / PP-ocel","kus",2.0299999999999998,null,{"$f":"E182*F182","v":0},null,null,null,null,null,null,null,2,null,null,null,null,null,null,null,null,null,null,null,3,1,"28613355.M",null,null,null,null,null,null,null,null,null,null,null,null,null,null,null,null,null,null,null,null,null,null,1,{"$f":"IF(AZ182=1,G182,0)","v":0},{"$f":"IF(AZ182=2,G182,0)","v":0},{"$f":"IF(AZ182=3,G182,0)","v":0},{"$f":"IF(AZ182=4,G182,0)","v":0},{"$f":"IF(AZ182=5,G182,0)","v":0},null,null,null,null,null,null,null,null,null,null,null,null,null,null,null,null,null,null,null,null,null,3,1,null,null,null,null,null,null,null,null,null,null,null,null,null,null,null,null,null,null,null,null,null,null,null,0]
[null,null,"LN + TP D90/DN80:2*1,015",null,2.0299999999999998,null,null,null,null,null,null,null,"LN + TP D90/DN80:2*1,015"]
[47,"28613420","Trubka tlaková PE100 SDR11 d32 x 3,0 mm PN16 návin","m",2.0299999999999998,null,{"$f":"E184*F184","v":0},null,null,null,null,null,null,null,2,null,null,null,null,null,null,null,null,null,null,null,3,1,28613420,null,null,null,null,null,null,null,null,null,null,null,null,null,null,null,null,null,null,null,null,null,null,1,{"$f":"IF(AZ184=1,G184,0)","v":0},{"$f":"IF(AZ184=2,G184,0)","v":0},{"$f":"IF(AZ184=3,G184,0)","v":0},{"$f":"IF(AZ184=4,G184,0)","v":0},{"$f":"IF(AZ184=5,G184,0)","v":0},null,null,null,null,null,null,null,null,null,null,null,null,null,null,null,null,null,null,null,null,null,3,1,null,null,null,null,null,null,null,null,null,null,null,null,null,null,null,null,null,null,null,null,null,null,null,2.7E-4]
[null,null,"TRUBKY  ČERNÉ S MODRÝM PRUHEM z PE 100RC dle ČSN EN 12 201",null,null,null,null,null,null,null,null,"TRUBKY  ČERNÉ S MODRÝM PRUHEM z PE 100RC dle ČSN EN 12 201",null,null,3]
[null,null,"PN 16 při k = 1,25",null,null,null,null,null,null,null,null,"PN 16 při k = 1,25",null,null,3]
[null,null,"Odkalení d 32x3,0 mm:2,00*1,015",null,2.0299999999999998,null,null,null,null,null,null,null,"Odkalení d 32x3,0 mm:2,00*1,015"]
[48,"28613423","Trubka tlaková PE100 SDR11 63x5,8 mm PN16 návin","m",61.6511,null,{"$f":"E188*F188","v":0},null,null,null,null,null,null,null,2,null,null,null,null,null,null,null,null,null,null,null,3,1,28613423,null,null,null,null,null,null,null,null,null,null,null,null,null,null,null,null,null,null,null,null,null,null,1,{"$f":"IF(AZ188=1,G188,0)","v":0},{"$f":"IF(AZ188=2,G188,0)","v":0},{"$f":"IF(AZ188=3,G188,0)","v":0},{"$f":"IF(AZ188=4,G188,0)","v":0},{"$f":"IF(AZ188=5,G188,0)","v":0},null,null,null,null,null,null,null,null,null,null,null,null,null,null,null,null,null,null,null,null,null,3,1,null,null,null,null,null,null,null,null,null,null,null,null,null,null,null,null,null,null,null,null,null,null,null,3.14E-3]
[null,null,"TRUBKY  ČERNÉ S MODRÝM PRUHEM z PE 100RC dle ČSN EN 12 201",null,null,null,null,null,null,null,null,"TRUBKY  ČERNÉ S MODRÝM PRUHEM z PE 100RC dle ČSN EN 12 201",null,null,3]
[null,null,"PN 16 při k = 1,25",null,null,null,null,null,null,null,null,"PN 16 při k = 1,25",null,null,3]
[null,null,"Řad d 63x5,8 mm:60,74*1,015",null,61.6511,null,null,null,null,null,null,null,"Řad d 63x5,8 mm:60,74*1,015"]
[49,"28613425","Trubka tlaková PE100 SDR11 90x8,2 mm PN16 tyč","m",161.20230000000001,null,{"$f":"E192*F192","v":0},null,null,null,null,null,null,null,2,null,null,null,null,null,null,null,null,null,null,null,3,1,28613425,null,null,null,null,null,null,null,null,null,null,null,null,null,null,null,null,null,null,null,null,null,null,1,{"$f":"IF(AZ192=1,G192,0)","v":0},{"$f":"IF(AZ192=2,G192,0)","v":0},{"$f":"IF(AZ192=3,G192,0)","v":0},{"$f":"IF(AZ192=4,G192,0)","v":0},{"$f":"IF(AZ192=5,G192,0)","v":0},null,null,null,null,null,null,null,null,null,null,null,null,null,null,null,null,null,null,null,null,null,3,1,null,null,null,null,null,null,null,null,null,null,null,null,null,null,null,null,null,null,null,null,null,null,null,3.14E-3]
[null,null,"TRUBKY  ČERNÉ S MODRÝM PRUHEM z PE 100RC dle ČSN EN 12 201",null,null,null,null,null,null,null,null,"TRUBKY  ČERNÉ S MODRÝM PRUHEM z PE 100RC dle ČSN EN 12 201",null,null,3]
[null,null,"PN 16 při k = 1,25",null,null,null,null,null,null,null,null,"PN 16 při k = 1,25",null,null,3]
[null,null,"Řad d 90x8,2 mm:158,82*1,015",null,161.20230000000001,null,null,null,null,null,null,null,"Řad d 90x8,2 mm:158,82*1,015"]
[50,"28655451.A","Navrtávací odboč.ventil DAV(KIT) 63/32","kus",3.0449999999999999,null,{"$f":"E196*F196","v":0},null,null,null,null,null,null,null,2,null,null,null,null,null,null,null,null,null,null,null,3,1,"28655451.A",null,null,null,null,null,null,null,null,null,null,null,null,null,null,null,null,null,null,null,null,null,null,1,{"$f":"IF(AZ196=1,G196,0)","v":0},{"$f":"IF(AZ196=2,G196,0)","v":0},{"$f":"IF(AZ196=3,G196,0)","v":0},{"$f":"IF(AZ196=4,G196,0)","v":0},{"$f":"IF(AZ196=5,G196,0)","v":0},null,null,null,null,null,null,null,null,null,null,null,null,null,null,null,null,null,null,null,null,null,3,1,null,null,null,null,null,null,null,null,null,null,null,null,null,null,null,null,null,null,null,null,null,null,null,0]
[null,null,"VP2 D63/32:1*1,015",null,1.0149999999999999,null,null,null,null,null,null,null,"VP2 D63/32:1*1,015"]
[null,null,"VP3 D63/32:1*1,015",null,1.0149999999999999,null,null,null,null,null,null,null,"VP3 D63/32:1*1,015"]
[null,null,"VP4 D63/32:1*1,015",null,1.0149999999999999,null,null,null,null,null,null,null,"VP4 D63/32:1*1,015"]
[51,"28655456.A","Navrtávací odboč.ventil DAV(KIT) 90/32","kus",1.0149999999999999,null,{"$f":"E200*F200","v":0},null,null,null,null,null,null,null,2,null,null,null,null,null,null,null,null,null,null,null,3,1,"28655456.A",null,null,null,null,null,null,null,null,null,null,null,null,null,null,null,null,null,null,null,null,null,null,1,{"$f":"IF(AZ200=1,G200,0)","v":0},{"$f":"IF(AZ200=2,G200,0)","v":0},{"$f":"IF(AZ200=3,G200,0)","v":0},{"$f":"IF(AZ200=4,G200,0)","v":0},{"$f":"IF(AZ200=5,G200,0)","v":0},null,null,null,null,null,null,null,null,null,null,null,null,null,null,null,null,null,null,null,null,null,3,1,null,null,null,null,null,null,null,null,null,null,null,null,null,null,null,null,null,null,null,null,null,null,null,0]
[null,null,"VP1 D90/32:1*1,015",null,1.0149999999999999,null,null,null,null,null,null,null,"VP1 D90/32:1*1,015"]
[52,"28655465","Zemní souprava EBS pro ventil DAV","kus",4.0599999999999996,null,{"$f":"E202*F202","v":0},null,null,null,null,null,null,null,2,null,null,null,null,null,null,null,null,null,null,null,3,1,28655465,null,null,null,null,null,null,null,null,null,null,null,null,null,null,null,null,null,null,null,null,null,null,1,{"$f":"IF(AZ202=1,G202,0)","v":0},{"$f":"IF(AZ202=2,G202,0)","v":0},{"$f":"IF(AZ202=3,G202,0)","v":0},{"$f":"IF(AZ202=4,G202,0)","v":0},{"$f":"IF(AZ202=5,G202,0)","v":0},null,null,null,null,null,null,null,null,null,null,null,null,null,null,null,null,null,null,null,null,null,3,1,null,null,null,null,null,null,null,null,null,null,null,null,null,null,null,null,null,null,null,null,null,null,null,0]
[null,null,"VP1 d 32x3,0 mm:1*1,015",null,1.0149999999999999,null,null,null,null,null,null,null,"VP1 d 32x3,0 mm:1*1,015"]
[null,null,"VP2 d 32x3,0 mm :1*1,015",null,1.0149999999999999,null,null,null,null,null,null,null,"VP2 d 32x3,0 mm :1*1,015"]
[null,null,"VP3 d 32x3,0 mm:1*1,015",null,1.0149999999999999,null,null,null,null,null,null,null,"VP3 d 32x3,0 mm:1*1,015"]
[null,null,"VP4 d 32x3,0 mm:1*1,015",null,1.0149999999999999,null,null,null,null,null,null,null,"VP4 d 32x3,0 mm:1*1,015"]
[53,"42201750","Poklop uliční šoupátkový č.1750","kus",3,null,{"$f":"E207*F207","v":0},null,null,null,null,null,null,null,2,null,null,null,null,null,null,null,null,null,null,null,3,1,42201750,null,null,null,null,null,null,null,null,null,null,null,null,null,null,null,null,null,null,null,null,null,null,1,{"$f":"IF(AZ207=1,G207,0)","v":0},{"$f":"IF(AZ207=2,G207,0)","v":0},{"$f":"IF(AZ207=3,G207,0)","v":0},{"$f":"IF(AZ207=4,G207,0)","v":0},{"$f":"IF(AZ207=5,G207,0)","v":0},null,null,null,null,null,null,null,null,null,null,null,null,null,null,null,null,null,null,null,null,null,3,1,null,null,null,null,null,null,null,null,null,null,null,null,null,null,null,null,null,null,null,null,null,null,null,1.1299999999999999E-2]
[null,null,"Š DN50:2",null,2,null,null,null,null,null,null,null,"Š DN50:2"]
[null,null,"Š DN80:1",null,1,null,null,null,null,null,null,null,"Š DN80:1"]
[54,"42201950","Poklop podz. hydrantů - litina","kus",1,null,{"$f":"E210*F210","v":0},null,null,null,null,null,null,null,2,null,null,null,null,null,null,null,null,null,null,null,3,1,42201950,null,null,null,null,null,null,null,null,null,null,null,null,null,null,null,null,null,null,null,null,null,null,1,{"$f":"IF(AZ210=1,G210,0)","v":0},{"$f":"IF(AZ210=2,G210,0)","v":0},{"$f":"IF(AZ210=3,G210,0)","v":0},{"$f":"IF(AZ210=4,G210,0)","v":0},{"$f":"IF(AZ210=5,G210,0)","v":0},null,null,null,null,null,null,null,null,null,null,null,null,null,null,null,null,null,null,null,null,null,3,1,null,null,null,null,null,null,null,null,null,null,null,null,null,null,null,null,null,null,null,null,null,null,null,1.1299999999999999E-2]
[null,null,"Odkalení:1",null,1,null,null,null,null,null,null,null,"Odkalení:1"]
[55,"42203481","Podkladová deska č. 3481","kus",3,null,{"$f":"E212*F212","v":0},null,null,null,null,null,null,null,2,null,null,null,null,null,null,null,null,null,null,null,3,1,42203481,null,null,null,null,null,null,null,null,null,null,null,null,null,null,null,null,null,null,null,null,null,null,1,{"$f":"IF(AZ212=1,G212,0)","v":0},{"$f":"IF(AZ212=2,G212,0)","v":0},{"$f":"IF(AZ212=3,G212,0)","v":0},{"$f":"IF(AZ212=4,G212,0)","v":0},{"$f":"IF(AZ212=5,G212,0)","v":0},null,null,null,null,null,null,null,null,null,null,null,null,null,null,null,null,null,null,null,null,null,3,1,null,null,null,null,null,null,null,null,null,null,null,null,null,null,null,null,null,null,null,null,null,null,null,5.9999999999999995E-4]
[null,null,"Š DN50:2",null,2,null,null,null,null,null,null,null,"Š DN50:2"]
[null,null,"Š DN80:1",null,1,null,null,null,null,null,null,null,"Š DN80:1"]
[56,"42203482","Podkladová deska pro poklop Hp","kus",1,null,{"$f":"E215*F215","v":0},null,null,null,null,null,null,null,2,null,null,null,null,null,null,null,null,null,null,null,3,1,42203482,null,null,null,null,null,null,null,null,null,null,null,null,null,null,null,null,null,null,null,null,null,null,1,{"$f":"IF(AZ215=1,G215,0)","v":0},{"$f":"IF(AZ215=2,G215,0)","v":0},{"$f":"IF(AZ215=3,G215,0)","v":0},{"$f":"IF(AZ215=4,G215,0)","v":0},{"$f":"IF(AZ215=5,G215,0)","v":0},null,null,null,null,null,null,null,null,null,null,null,null,null,null,null,null,null,null,null,null,null,3,1,null,null,null,null,null,null,null,null,null,null,null,null,null,null,null,null,null,null,null,null,null,null,null,5.9999999999999995E-4]
[null,null,"Odkalení:1",null,1,null,null,null,null,null,null,null,"Odkalení:1"]
[57,"42204000.01","Šoupátko DN50 č. 4000 E2","kus",2,null,{"$f":"E217*F217","v":0},null,null,null,null,null,null,null,2,null,null,null,null,null,null,null,null,null,null,null,3,1,42204000.009999998,null,null,null,null,null,null,null,null,null,null,null,null,null,null,null,null,null,null,null,null,null,null,1,{"$f":"IF(AZ217=1,G217,0)","v":0},{"$f":"IF(AZ217=2,G217,0)","v":0},{"$f":"IF(AZ217=3,G217,0)","v":0},{"$f":"IF(AZ217=4,G217,0)","v":0},{"$f":"IF(AZ217=5,G217,0)","v":0},null,null,null,null,null,null,null,null,null,null,null,null,null,null,null,null,null,null,null,null,null,3,1,null,null,null,null,null,null,null,null,null,null,null,null,null,null,null,null,null,null,null,null,null,null,null,1.8499999999999999E-2]
[null,null,"Šoupátko přírubové krkové - měkcetěsnící klínové šoupátko s hladkým a volným průtokovým kanálem",null,null,null,null,null,null,null,null,"Šoupátko přírubové krkové - měkcetěsnící klínové šoupátko s hladkým a volným průtokovým kanálem",null,null,3]
[null,null,"č. 4000 E2",null,null,null,null,null,null,null,null,"č. 4000 E2",null,null,3]
[null,null,"PN 16",null,null,null,null,null,null,null,null,"PN 16",null,null,3]
[null,null,"DN 50",null,null,null,null,null,null,null,null,"DN 50",null,null,3]
[null,null,"těleso a víko: tvárná litina GGG 400 - DIN 1693",null,null,null,null,null,null,null,null,"těleso a víko: tvárná litina GGG 400 - DIN 1693",null,null,3]
[null,null,"medium: pitná voda, neagresivní odpadní voda",null,null,null,null,null,null,null,null,"medium: pitná voda, neagresivní odpadní voda",null,null,3]
[null,null,"Š DN50:2",null,2,null,null,null,null,null,null,null,"Š DN50:2"]
[58,"42204000.03","Šoupátko DN80 č. 4000 E2","kus",1,null,{"$f":"E225*F225","v":0},null,null,null,null,null,null,null,2,null,null,null,null,null,null,null,null,null,null,null,3,1,42204000.030000001,null,null,null,null,null,null,null,null,null,null,null,null,null,null,null,null,null,null,null,null,null,null,1,{"$f":"IF(AZ225=1,G225,0)","v":0},{"$f":"IF(AZ225=2,G225,0)","v":0},{"$f":"IF(AZ225=3,G225,0)","v":0},{"$f":"IF(AZ225=4,G225,0)","v":0},{"$f":"IF(AZ225=5,G225,0)","v":0},null,null,null,null,null,null,null,null,null,null,null,null,null,null,null,null,null,null,null,null,null,3,1,null,null,null,null,null,null,null,null,null,null,null,null,null,null,null,null,null,null,null,null,null,null,null,1.8499999999999999E-2]
[null,null,"Šoupátko přírubové krkové - měkcetěsnící klínové šoupátko s hladkým a volným průtokovým kanálem",null,null,null,null,null,null,null,null,"Šoupátko přírubové krkové - měkcetěsnící klínové šoupátko s hladkým a volným průtokovým kanálem",null,null,3]
[null,null,"č. 4000 E2",null,null,null,null,null,null,null,null,"č. 4000 E2",null,null,3]
[null,null,"PN 16",null,null,null,null,null,null,null,null,"PN 16",null,null,3]
[null,null,"DN 80",null,null,null,null,null,null,null,null,"DN 80",null,null,3]
[null,null,"těleso a víko: tvárná litina GGG 400 - DIN 1693",null,null,null,null,null,null,null,null,"těleso a víko: tvárná litina GGG 400 - DIN 1693",null,null,3]
[null,null,"medium: pitná voda, neagresivní odpadní voda",null,null,null,null,null,null,null,null,"medium: pitná voda, neagresivní odpadní voda",null,null,3]
[null,null,"Š DN80:1",null,1,null,null,null,null,null,null,null,"Š DN80:1"]
[59,"42209500.01","Zemní souprava teleskop. č.9500 E2 DN50-100","kus",3,null,{"$f":"E233*F233","v":0},null,null,null,null,null,null,null,2,null,null,null,null,null,null,null,null,null,null,null,3,1,42209500.009999998,null,null,null,null,null,null,null,null,null,null,null,null,null,null,null,null,null,null,null,null,null,null,1,{"$f":"IF(AZ233=1,G233,0)","v":0},{"$f":"IF(AZ233=2,G233,0)","v":0},{"$f":"IF(AZ233=3,G233,0)","v":0},{"$f":"IF(AZ233=4,G233,0)","v":0},{"$f":"IF(AZ233=5,G233,0)","v":0},null,null,null,null,null,null,null,null,null,null,null,null,null,null,null,null,null,null,null,null,null,3,1,null,null,null,null,null,null,null,null,null,null,null,null,null,null,null,null,null,null,null,null,null,null,null,5.4000000000000003E-3]
[null,null,"Š DN50:2",null,2,null,null,null,null,null,null,null,"Š DN50:2"]
[null,null,"Š DN80:1",null,1,null,null,null,null,null,null,null,"Š DN80:1"]
[60,"55259928","Koleno přírubové FFK DN50-22 1/2°","kus",1.01,null,{"$f":"E236*F236","v":0},null,null,null,null,null,null,null,2,null,null,null,null,null,null,null,null,null,null,null,3,1,55259928,null,null,null,null,null,null,null,null,null,null,null,null,null,null,null,null,null,null,null,null,null,null,1,{"$f":"IF(AZ236=1,G236,0)","v":0},{"$f":"IF(AZ236=2,G236,0)","v":0},{"$f":"IF(AZ236=3,G236,0)","v":0},{"$f":"IF(AZ236=4,G236,0)","v":0},{"$f":"IF(AZ236=5,G236,0)","v":0},null,null,null,null,null,null,null,null,null,null,null,null,null,null,null,null,null,null,null,null,null,3,1,null,null,null,null,null,null,null,null,null,null,null,null,null,null,null,null,null,null,null,null,null,null,null,8.9999999999999993E-3]
[null,null,"FFK 22,5° DN50:1*1,01",null,1.01,null,null,null,null,null,null,null,"FFK 22,5° DN50:1*1,01"]
[61,"552599937","Tvarovka přír. s přír. odb. T DN80/50mm","kus",1.01,null,{"$f":"E238*F238","v":0},null,null,null,null,null,null,null,2,null,null,null,null,null,null,null,null,null,null,null,3,1,552599937,null,null,null,null,null,null,null,null,null,null,null,null,null,null,null,null,null,null,null,null,null,null,1,{"$f":"IF(AZ238=1,G238,0)","v":0},{"$f":"IF(AZ238=2,G238,0)","v":0},{"$f":"IF(AZ238=3,G238,0)","v":0},{"$f":"IF(AZ238=4,G238,0)","v":0},{"$f":"IF(AZ238=5,G238,0)","v":0},null,null,null,null,null,null,null,null,null,null,null,null,null,null,null,null,null,null,null,null,null,3,1,null,null,null,null,null,null,null,null,null,null,null,null,null,null,null,null,null,null,null,null,null,null,null,1.4E-2]
[null,null,"T DN80/50:1*1,01",null,1.01,null,null,null,null,null,null,null,"T DN80/50:1*1,01"]
[62,"55260023","Příruba zaslepovací X DN80mm","kus",1.01,null,{"$f":"E240*F240","v":0},null,null,null,null,null,null,null,2,null,null,null,null,null,null,null,null,null,null,null,3,1,55260023,null,null,null,null,null,null,null,null,null,null,null,null,null,null,null,null,null,null,null,null,null,null,1,{"$f":"IF(AZ240=1,G240,0)","v":0},{"$f":"IF(AZ240=2,G240,0)","v":0},{"$f":"IF(AZ240=3,G240,0)","v":0},{"$f":"IF(AZ240=4,G240,0)","v":0},{"$f":"IF(AZ240=5,G240,0)","v":0},null,null,null,null,null,null,null,null,null,null,null,null,null,null,null,null,null,null,null,null,null,3,1,null,null,null,null,null,null,null,null,null,null,null,null,null,null,null,null,null,null,null,null,null,null,null,3.8E-3]
[null,null,"X DN80:1*1,01",null,1.01,null,null,null,null,null,null,null,"X DN80:1*1,01"]
[63,"55260043","Příruba zaslepovací  XG DN50mm závit 1\"","kus",1.01,null,{"$f":"E242*F242","v":0},null,null,null,null,null,null,null,2,null,null,null,null,null,null,null,null,null,null,null,3,1,55260043,null,null,null,null,null,null,null,null,null,null,null,null,null,null,null,null,null,null,null,null,null,null,1,{"$f":"IF(AZ242=1,G242,0)","v":0},{"$f":"IF(AZ242=2,G242,0)","v":0},{"$f":"IF(AZ242=3,G242,0)","v":0},{"$f":"IF(AZ242=4,G242,0)","v":0},{"$f":"IF(AZ242=5,G242,0)","v":0},null,null,null,null,null,null,null,null,null,null,null,null,null,null,null,null,null,null,null,null,null,3,1,null,null,null,null,null,null,null,null,null,null,null,null,null,null,null,null,null,null,null,null,null,null,null,2.3999999999999998E-3]
[null,null,"XG DN50/1\":1*1,01",null,1.01,null,null,null,null,null,null,null,"XG DN50/1\":1*1,01"]
[null,"Celkem za",{"$f":"CONCATENATE(B89,\" \",C89)","v":"8 Trubní vedení"},null,null,null,{"$f":"SUM(G89:G243)","v":0},null,null,null,null,null,null,null,4,null,null,null,null,null,null,null,null,null,null,null,null,null,null,null,null,null,null,null,null,null,null,null,null,null,null,null,null,null,null,null,null,null,null,null,null,null,{"$f":"SUM(BA89:BA243)","v":0},{"$f":"SUM(BB89:BB243)","v":0},{"$f":"SUM(BC89:BC243)","v":0},{"$f":"SUM(BD89:BD243)","v":0},{"$f":"SUM(BE89:BE243)","v":0}]
["Díl:","99","Staveništní přesun hmot",null,null,null,null,null,null,null,null,null,null,null,1]
[64,"998276101R00","Přesun hmot, trubní vedení plastová, otevř. výkop včetně přesunů pro komunikace","t",544.75085845199999,null,{"$f":"E246*F246","v":0},null,null,null,null,null,null,null,2,null,null,null,null,null,null,null,null,null,null,null,7,1,2,null,null,null,null,null,null,null,null,null,null,null,null,null,null,null,null,null,null,null,null,null,null,1,{"$f":"IF(AZ246=1,G246,0)","v":0},{"$f":"IF(AZ246=2,G246,0)","v":0},{"$f":"IF(AZ246=3,G246,0)","v":0},{"$f":"IF(AZ246=4,G246,0)","v":0},{"$f":"IF(AZ246=5,G246,0)","v":0},null,null,null,null,null,null,null,null,null,null,null,null,null,null,null,null,null,null,null,null,null,7,1,null,null,null,null,null,null,null,null,null,null,null,null,null,null,null,null,null,null,null,null,null,null,null,0]
[null,"Celkem za",{"$f":"CONCATENATE(B245,\" \",C245)","v":"99 Staveništní přesun hmot"},null,null,null,{"$f":"SUM(G245:G246)","v":0},null,null,null,null,null,null,null,4,null,null,null,null,null,null,null,null,null,null,null,null,null,null,null,null,null,null,null,null,null,null,null,null,null,null,null,null,null,null,null,null,null,null,null,null,null,{"$f":"SUM(BA245:BA246)","v":0},{"$f":"SUM(BB245:BB246)","v":0},{"$f":"SUM(BC245:BC246)","v":0},{"$f":"SUM(BD245:BD246)","v":0},{"$f":"SUM(BE245:BE246)","v":0}]

{"sheet":"400 3195400 KL","index":4,"n_rows":45,"n_cols":8,"rows_kept":45,"cut":false,"hidden":false,"merged":[[22,0,22,1],[7,2,7,4],[8,2,8,4],[9,2,9,4],[10,2,10,4],[11,2,11,4],[50,1,50,6],[29,5,29,6],[30,5,30,6],[31,5,31,6],[32,5,32,6],[33,5,33,6],[36,1,44,6],[45,1,45,6],[46,1,46,6],[47,1,47,6],[48,1,48,6],[49,1,49,6]]}
["POLOŽKOVÝ ROZPOČET"]
["Rozpočet",null,"3195/400","Veřejné osvětlení",null,"JKSO ","828.79"]
[]
["Objekt",null,null,null,null,"SKP "]
["400",null,"Veřejné osvětlení",null,null,"Měrná jednotka","m"]
["Stavba",null,null,null,null,"Počet jednotek",0]
["3195",null,"Vysoké nad Jizerou - Nový vodovodní řad",null,null,"Náklady na m.j.",{"$f":"IF(G6=0,,ROUND((F30+F32)/G6,1))","v":0}]
["Projektant",null,"PVK Projekt s.r.o.",null,null,"Typ rozpočtu"]
["Zpracovatel projektu"]
["Objednatel",null,"Město Vysoké nad Jizerou"]
["Dodavatel",null,".",null,null,"Zakázkové číslo "]
["Rozpočtoval",null,null,null,null,"Počet listů"]
["ROZPOČTOVÉ NÁKLADY"]
["Základní rozpočtové náklady"]
[null,"HSV celkem",{"$f":"'400 3195400 Rek'!E8","v":0}]
["Z","PSV celkem",{"$f":"'400 3195400 Rek'!F8","v":0}]
["R","M práce celkem",{"$f":"'400 3195400 Rek'!H8","v":0}]
["N","M dodávky celkem",{"$f":"'400 3195400 Rek'!G8","v":0}]
["ZRN celkem",null,{"$f":"SUM(C15:C18)","v":0}]
[]
["HZS",null,{"$f":"'400 3195400 Rek'!I8","v":0}]
["ZRN+HZS",null,{"$f":"C19+C21","v":0}]
["ZRN+ost.náklady+HZS",null,{"$f":"C22+G23","v":0}]
["Vypracoval",null,null,"Za zhotovitele",null,"Za objednatele"]
["Jméno :",null,null,"Jméno :",null,"Jméno :"]
["Datum :",null,null,"Datum :",null,"Datum :"]
[]
["Podpis :",null,null,"Podpis:",null,"Podpis:"]
[]
["Základ pro DPH",null,21,"%  ",null,{"$f":"C23-F32","v":0}]
["DPH",null,{"$f":"C30","v":21},"% ",null,{"$f":"ROUND(PRODUCT(F30,C31/100),0)","v":0}]
["Základ pro DPH",null,0,"% ",null,0]
["DPH",null,{"$f":"C32","v":0},"% ",null,{"$f":"ROUND(PRODUCT(F32,C33/100),0)","v":0}]
["CENA ZA OBJEKT CELKEM",null,null,null,null,{"$f":"ROUND(SUM(F30:F33),0)","v":0}]
[]
["Poznámka :",null,null,null,null,null,null," "]
[null,null,null,null,null,null,null," "]
[null,null,null,null,null,null,null," "]
[null,null,null,null,null,null,null," "]
[null,null,null,null,null,null,null," "]
[null,null,null,null,null,null,null," "]
[null,null,null,null,null,null,null," "]
[null,null,null,null,null,null,null," "]
[null,null,null,null,null,null,null," "]
[null,null,null,null,null,null,null," "]

{"sheet":"400 3195400 Rek","index":5,"n_rows":8,"n_cols":9,"rows_kept":8,"cut":false,"hidden":false,"merged":[[0,0,0,1],[1,0,1,1],[1,6,1,8]]}
["Stavba :",null,"3195 Vysoké nad Jizerou - Nový vodovodní řad",null,null,null,"Rozpočet :","3195/400"]
["Objekt :",null,"400 Veřejné osvětlení",null,null,null,"Veřejné osvětlení"]
[]
["REKAPITULACE  STAVEBNÍCH  DÍLŮ"]
[]
[null,"Stavební díl",null,null,"HSV","PSV","Dodávka","Montáž","HZS"]
[{"$f":"'400 3195400 Pol'!B7","v":"M21.2"},{"$f":"'400 3195400 Pol'!C7","v":"Elektromontáře - Veřejné osvětlení"},null,null,{"$f":"'400 3195400 Pol'!BA9","v":0},{"$f":"'400 3195400 Pol'!BB9","v":0},{"$f":"'400 3195400 Pol'!BC9","v":0},{"$f":"'400 3195400 Pol'!BD9","v":0},{"$f":"'400 3195400 Pol'!BE9","v":0}]
[null,"CELKEM  OBJEKT",null,null,{"$f":"SUM(E7:E7)","v":0},{"$f":"SUM(F7:F7)","v":0},{"$f":"SUM(G7:G7)","v":0},{"$f":"SUM(H7:H7)","v":0},{"$f":"SUM(I7:I7)","v":0}]

{"sheet":"400 3195400 Pol","index":6,"n_rows":9,"n_cols":80,"rows_kept":9,"cut":false,"hidden":false,"merged":[[0,0,0,6],[2,0,2,1],[3,0,3,1],[3,4,3,6]]}
["Položkový rozpočet "]
[]
["Stavba :",null,"3195 Vysoké nad Jizerou - Nový vodovodní řad",null,"Rozpočet:",{"$f":"'400 3195400 Rek'!H1","v":"3195/400"}]
["Objekt :",null,"400 Veřejné osvětlení",null,{"$f":"'400 3195400 Rek'!G2","v":"Veřejné osvětlení"}]
[]
["P.č.","Číslo položky","Název položky","MJ","množství","cena / MJ","celkem (Kč)","Jednotková hmotnost","Celková hmotnost","Jednotková dem.hmot.","Celková dem.hmot."]
["Díl:","M21.2","Elektromontáře - Veřejné osvětlení",null,null,null,null,null,null,null,null,null,null,null,1]
[1,"M21 20-0000.SUB","D+M veřejného osvětlení (samostatná příloha) ","soubor",1,{"$f":"SUM('Rekapitulace VO'!F18)","v":0},{"$f":"E8*F8","v":0},0,{"$f":"E8*H8","v":0},null,{"$f":"E8*J8","v":0},null,null,null,2,null,null,null,null,null,null,null,null,null,null,null,11,1,1,null,null,null,null,null,null,null,null,null,null,null,null,null,null,null,null,null,null,null,null,null,null,4,{"$f":"IF(AZ8=1,G8,0)","v":0},{"$f":"IF(AZ8=2,G8,0)","v":0},{"$f":"IF(AZ8=3,G8,0)","v":0},{"$f":"IF(AZ8=4,G8,0)","v":0},{"$f":"IF(AZ8=5,G8,0)","v":0},null,null,null,null,null,null,null,null,null,null,null,null,null,null,null,null,null,null,null,null,null,11,1]
[null,"Celkem za","M21.2 Elektromontáře - Veřejné osvětlení",null,null,null,{"$f":"SUM(G7:G8)","v":0},null,{"$f":"SUM(I7:I8)","v":0},null,{"$f":"SUM(K7:K8)","v":0},null,null,null,4,null,null,null,null,null,null,null,null,null,null,null,null,null,null,null,null,null,null,null,null,null,null,null,null,null,null,null,null,null,null,null,null,null,null,null,null,null,{"$f":"SUM(BA7:BA8)","v":0},{"$f":"SUM(BB7:BB8)","v":0},{"$f":"SUM(BC7:BC8)","v":0},{"$f":"SUM(BD7:BD8)","v":0},{"$f":"SUM(BE7:BE8)","v":0}]

{"sheet":"Rekapitulace VO","index":7,"n_rows":18,"n_cols":8,"rows_kept":18,"cut":false,"hidden":false,"merged":[]}
[null,"název akce: Město Vysoké nad Jizerou"]
[null,"objekt: SO 400 - Veřejné osvětlení"]
[null,"/ mezi ISŠ a domovem důchodců /"]
[]
["Rekapitulace ceny"]
["p.č.",null,null,"%","základ","cena /Kč/"]
[1,"materiál elektromontážní",null,null,null,{"$f":"SUM('Elektromontáže VO'!G19)","v":0},null,13]
[2,"prořez",null,0,0,{"$f":"D8*E8/100","v":0},null,14]
[3,"materiál podružný",null,0,{"$f":"SUM(F7:F7)","v":0},{"$f":"D9*E9/100","v":0},null,15]
[4,"materiál zemní+stavební",null,null,null,{"$f":"SUM('Elektromontáže VO'!G25)","v":0},null,17]
[5,"elektromontáže",null,null,null,{"$f":"SUM('Elektromontáže VO'!G41)","v":0},{"$f":"SUM(F7:F9)","v":0},18]
[6,"zemní práce",null,null,null,{"$f":"SUM('Elektromontáže VO'!G54)","v":0},{"$f":"SUM(F10:F10)","v":0},21]
[7,"PPV pro elektromontáže",null,0,{"$f":"SUM(F11:G11)","v":0},{"$f":"D13*E13/100","v":0},null,22]
[8,"PPV pro zemní práce",null,0,{"$f":"SUM(F12:G12)","v":0},{"$f":"D14*E14/100","v":0},null,23]
[9,"materiál+výkony celkem",null,null,null,{"$f":"SUM(F7:F14)","v":0},null,26]
[10,"ostatní náklady",null,null,null,{"$f":"SUM('Elektromontáže VO'!G62)","v":0},null,27]
[11,"revize",null,null,null,0,null,36]
[12,"NÁKLADY CELKEM BEZ DPH",null,null,null,{"$f":"SUM(F15:F17)","v":0},{"$f":"SUM(F18:F18)","v":0},41]

{"sheet":"Elektromontáže VO","index":8,"n_rows":62,"n_cols":13,"rows_kept":62,"cut":false,"hidden":false,"merged":[]}
[null,"název akce: Město Vysoké nad Jizerou"]
[null,"objekt: SO 400 - Veřejné osvětlení"]
[null,"/ mezi ISŠ a domovem důchodců /"]
[]
["Soupis položek"]
["p.č.","č.položky","popis položky","mj.","množství","cena/mj.     ","cena celkem","Nh/mj.","Nh celkem","DPH","VKP","TC","kap."]
["Materiál elektromontážní"]
[1,560055,"stožár osv bezpatic K6-133/89/60Z žárZn +manžeta","ks",2,null,{"$f":"E8*F8","v":0},null,null,"S","*",null,"ME"]
[2,533082,"svítidlo venkovní výbojkové 70W","ks",2,null,0,null,null,"S","*",null,"ME"]
[3,593281,"výbojka sodík SON-T  E 70W","ks",2,null,0,null,null,"Z",null,null,"ME"]
[4,579401,"elvýzbroj stožáru SR721-27Cu 1xE27/4xM8/35mm2","ks",2,null,0,null,null,"S","*",null,"ME"]
[5,101209,"kabel AYKY 4x16","m",252,null,0,null,null,"S","*",null,"ME"]
[6,101105,"kabel CYKY 3x1,5","m",12,null,0,null,null,"S","*",null,"ME"]
[7,321501,"roura korugovaná KOPOFLEX KF09050 pr.50/41mm","m",243,null,0,null,null,"S","*",null,"ME"]
[8,295001,"vedení FeZn 30/4 (0,96kg/m)","m",50,null,0,null,null,"S","*",null,"ME"]
[9,295011,"vedení FeZn pr.10mm(0,63kg/m)","m",4,null,0,null,null,"S","*",null,"ME"]
[10,295073,"svorka pásku drátu zemnící SR3a 2šrouby FeZn","ks",4,null,0,null,null,"S","*",null,"ME"]
[11,190213,"kabelové oko Al lisovací 50x10 ALU","ks",2,null,0,null,null,"S","*",null,"ME"]
[null,null,"součet",null,null,null,{"$f":"SUM(G8:G18)","v":0},null,null,null,null,null,"ME"]
["Materiál zemní+stavební"]
[12,46412,"roura PE pr.110mm","m",4,null,{"$f":"E21*F21","v":0},null,null,"S",null,null,"MZ"]
[13,46383,"výstražná fólie šířka 0,34m","m",236,null,{"$f":"E22*F22","v":0},null,null,"S",null,null,"MZ"]
[14,46134,"beton B13,5","m3",0.9,null,{"$f":"E23*F23","v":0},null,null,"S",null,null,"MZ"]
[15,46453,"stožárové pouzdro plast SP315/1000","ks",2,null,{"$f":"E24*F24","v":0},null,null,"S",null,null,"MZ"]
[null,null,"součet",null,null,null,{"$f":"SUM(G21:G24)","v":0},null,null,null,null,null,"MZ"]
["Elektromontáže"]
[16,210204002,"stožár osvětlovací sadový ocelový","ks",2,null,{"$f":"E27*F27","v":0},null,null,"S",null,null,"CE"]
[17,210202104,"svítidlo výbojkové venkovní na sadový stožár","ks",2,null,0,null,null,"S",null,null,"CE"]
[18,210204201,"elektrovýzbroj stožárů pro 1 okruh","ks",2,null,0,null,null,"S",null,null,"CE"]
[19,210810013,"kabel(-CYKY) volně ulož.do 5x16/12x4/19x2,5/24x1,5","m",252,null,0,null,null,"S",null,null,"CE"]
[20,210810008,"kabel(-CYKY) volně uložený do 3x6/4x4/7x2,5","m",12,null,0,null,null,"S",null,null,"CE"]
[21,210100211,"ukončení kabelu do 4x16","ks",4,null,0,null,null,"S","*",null,"CE"]
[22,210100204,"ukončení kabelu do 3x4","ks",4,null,0,null,null,"S","*",null,"CE"]
[23,210010123,"trubka plast volně uložená do pr.50mm","m",243,null,0,null,null,"S",null,null,"CE"]
[24,210220021,"uzemňov.vedení v zemi úplná mtž FeZn do 120mm2","m",50,null,0,null,null,"S",null,null,"CE"]
[25,210220022,"uzemňov.vedení v zemi úplná mtž FeZn pr.8-10mm","m",4,null,0,null,null,"S",null,null,"CE"]
[26,210220301,"svorka hromosvodová do 2 šroubů","ks",4,null,0,null,null,"S","*",null,"CE"]
[27,210100102,"ukončení na svorkovnici vodič do 50mm2","ks",2,null,0,null,null,"S","*",null,"CE"]
[28,210101210,"připojení kabelu ve stáv. stožáru","kpl.",1,null,0,null,null,"S","*",null,"CE"]
[29,210292022,"vypnutí hlavn vedení vč.zajištění+vyzkouš+označení","ks",1,null,0,null,null,"Z","*",null,"CE"]
[null,null,"součet",null,null,null,{"$f":"SUM(G27:G40)","v":0},null,null,null,null,null,"CE"]
["Zemní práce"]
[30,460300223,"protlačování do pr.110mm/PE chránička tz.3/ko1.0","m",4,null,{"$f":"E43*F43","v":0},null,null,"S","*",null,"CZ"]
[31,460200163,"výkop kabel.rýhy šířka 35/hloubka 80cm tz.3/ko1.0","m",236,null,0,null,null,"S","*",null,"CZ"]
[32,460490012,"výstražná fólie šířka nad 30cm","m",236,null,0,null,null,"S",null,null,"CZ"]
[33,460560163,"zához kabelové rýhy šířka 35/hloubka 80cm tz.3","m",236,null,0,null,null,"S",null,null,"CZ"]
[34,460620013,"provizorní úprava terénu třída zeminy 3","m2",82.6,null,0,null,null,"S",null,null,"CZ"]
[35,460100003,"pouzdrový základ VO mimo trasu kabelu pr.0,3/1,5m","ks",2,null,0,null,null,"S","*",null,"CZ"]
[36,460050713,"výkop jámy do 2m3 pro stožár VO strojní tz.3/ko1.0","m3",1.6,null,0,null,null,"S",null,null,"CZ"]
[37,460120003,"zához jámy třída zeminy 3","m3",0.66,null,0,null,null,"S",null,null,"CZ"]
[38,460300006,"hutnění zeminy po vrstvách při strojním záhrnu","m3",0.66,null,0,null,null,"S",null,null,"CZ"]
[39,460600001,"odvoz zeminy do 5 km","m3",0.94,null,0,null,null,"S",null,null,"CZ"]
[40,460300006,"hutnění zeminy po vrstvách při strojním záhrnu","m3",66,null,0,null,null,"S","*",null,"CZ"]
[null,null,"součet",null,null,null,{"$f":"SUM(G43:G53)","v":0},null,null,null,null,null,"CZ"]
["Ostatní náklady"]
[41,218009001,"poplatek za recyklaci svítidla","ks",19,null,{"$f":"E56*F56","v":0},null,null,"Z",null,null,"ON"]
[42,218009011,"poplatek za recyklaci světelného zdroje","ks",19,null,0,null,null,"Z",null,null,"ON"]
[43,460710001,"geodetické zaměření skutečné polohy","m",240,null,0,null,null,"S","*",null,"ON"]
[44,219000231,"montážní plošina MP14","hod",1,null,0,null,null,"S","*",null,"ON"]
[45,219000235,"přesun montážní plošiny MP14","km",20,null,0,null,null,"S","*",null,"ON"]
[46,219000101,"vytyčení stáv. sítí","kpl.",1,null,0,null,null,"S","*",null,"ON"]
[null,null,"součet",null,null,null,{"$f":"SUM(G56:G61)","v":0},null,null,null,null,null,"ON"]

{"sheet":"ONS","index":9,"n_rows":25,"n_cols":70,"rows_kept":25,"cut":false,"hidden":false,"merged":[[0,0,0,6],[2,0,2,1],[3,0,3,1],[3,4,3,6],[6,2,6,6]]}
["Položkový rozpočet "]
[]
["Stavba :",null,"3195 Vysoké nad Jizerou - Nový vodovodní řad",null,"Rozpočet:","ONS"]
["Objekt :",null,"ONS - Ostatní náklady stavby"]
[]
["P.č.","Číslo položky","Název položky","MJ","množství","cena / MJ","celkem (Kč)","Jednotková hmotnost","Celková hmotnost","Jednotková dem.hmot.","Celková dem.hmot."]
["Díl:","950","Ostatní náklady stavby"]
[1,"950 99-0001.ONS","Zajištění prostoru a vybudování zařízení staveniště včetně potřebných staveništních komunikací","soubor",1,null,{"$f":"SUM(E8*F8)","v":0},8.6899999999999998E-3,{"$f":"E8*H8","v":8.6899999999999998E-3},0,{"$f":"E8*J8","v":0},null,null,null,null,null,null,null,null,null,null,null,null,null,null,null,null,null,null,null,null,null,null,null,null,null,null,null,null,null,null,1,{"$f":"IF(AP8=1,G8,0)","v":0},{"$f":"IF(AP8=2,G8,0)","v":0},{"$f":"IF(AP8=3,G8,0)","v":0},{"$f":"IF(AP8=4,G8,0)","v":0},{"$f":"IF(AP8=5,G8,0)","v":0},null,null,null,null,null,null,null,null,null,null,null,null,null,null,null,null,null,null,null,null,null,1,1]
[2,"950 99-0003.ONS","Zajištění bezpečnosti při provádění stavby ve smyslu bezpečnosti práce i ochrany životního prostředí a zeleně, chodců apod.","soubor",1,null,{"$f":"SUM(E9*F9)","v":0}]
[3,"950 99-0005.ONS","Vytýčení stavby a hranic pozemků při provádění stavby ","soubor",1,null,0]
[4,"950 99-0006.ONS","Zajištění včasného oznámení o zahájení prací majitelům pozemků a správců sítí dotčených stavbou","soubor",1,null,0]
[5,"950 99-0007.ONS","Spolupráce s vlastníky pozemků při případném uvolnění pozemků pro stavbu (např. skládky osobního materiálu vlastníků)","soubor",1,null,0,2.478E-2,{"$f":"E12*H12","v":2.478E-2},0,{"$f":"E12*J12","v":0},null,null,null,null,null,null,null,null,null,null,null,null,null,null,null,null,null,null,null,null,null,null,null,null,null,null,null,null,null,null,1,{"$f":"IF(AP12=1,G12,0)","v":0},{"$f":"IF(AP12=2,G12,0)","v":0},{"$f":"IF(AP12=3,G12,0)","v":0},{"$f":"IF(AP12=4,G12,0)","v":0},{"$f":"IF(AP12=5,G12,0)","v":0},null,null,null,null,null,null,null,null,null,null,null,null,null,null,null,null,null,null,null,null,null,1,1]
[6,"950 99-0008.ONS","Zajištění vytýčení podzemních zařízení, a v případě jejich křížení či souběhu v otevřeném výkopu, jejich písemné předání zpět jejich správcům před zásypem včetně zajištění platnosti jednotlivých vyjádření","soubor",1,null,0]
[7,"950 99-0013.ONS","Zajištění činnosti odpovědného geodeta zhotovitele","soubor",1,null,0]
[8,"950 99-0015.ONS","Zajištění čistoty na staveništi a v jeho okolí, zajištění každodenního čištění komunikací dotčených provozem zhotovitele","soubor",1,null,0]
[9,"950 99-0016.ONS","Fotodokumentace průběhu díla; zhotovitel zajistí a předá objednateli průběžnou fotodokumentaci realizace díla dle TS. Fotodokumentace bude dokladovat průběh díla a bude zejména dokumentovat části stavby a konstrukce před jejich zakrytím","soubor",1,null,0]
[10,"950 99-0017.ONS","Péče o nepředané objekty nebo jejich části a konstrukce stavby, jejich ošetřování a nutný rozsah pojištění","soubor",1,null,0,0,{"$f":"E17*H17","v":0},0,{"$f":"E17*J17","v":0},null,null,null,null,null,null,null,null,null,null,null,null,null,null,null,null,null,null,null,null,null,null,null,null,null,null,null,null,null,null,1,{"$f":"IF(AP17=1,G17,0)","v":0},{"$f":"IF(AP17=2,G17,0)","v":0},{"$f":"IF(AP17=3,G17,0)","v":0},{"$f":"IF(AP17=4,G17,0)","v":0},{"$f":"IF(AP17=5,G17,0)","v":0},null,null,null,null,null,null,null,null,null,null,null,null,null,null,null,null,null,null,null,null,null,1,1]
[11,"950 99-0021.ONS","Inženýrská a kompletační činnost zhotovitele dle TS","soubor",1,null,0]
[12,"950 99-0022.ONS","Zhotovení dokumentace skutečného provedení díla ","soubor",1,null,0]
[13,"950 99-0023.ONS","Geodetické zaměření stavby","soubor",1,null,0]
[14,"950 99-0024.ONS","Zkoušení konstrukcí a prací na komunikacích nezávislou zkušebnou v souladu s předpisy a ČSN","soubor",1,null,0]
[15,"950 99-0025.ONS","DIO","soubor",1,null,0]
[16,"950 99-0026.ONS","Ostatní činnosti nutné ke zdárnému provedení díla, které jsou vymezeny zejména v technické specifikaci stavby","soubor",1,null,0]
[]
[null,"ONS Celkem",null,null,null,null,{"$f":"SUM(G8:G23)","v":0}]

{"sheet":"List1","index":10,"n_rows":0,"n_cols":0,"rows_kept":0,"cut":false,"hidden":false,"merged":[]}